Workbook

Sheet TR136
A1: Indication of FFR results for Tender Round 136, accepted tenders will be officially notified via an issued acceptance letter.
A2: Tender Ref | B2: Status | C2: Rejection Codes | D2: Company Name | E2: Tendered Unit (BMU/Unit ID) | F2: TO connection / DNO connection | G2: Generation Type | H2: Start Date | I2: End Date | J2: Tendered Period (dd.mm.yy - dd.mm.yy) | K2: Applicable FFR Capability Data Table | L2: Tendered Frames per Service Day | U2: Tendered Prices*** | X2: BMUs Only - Applicable Balancing Service (i.e. ABSVD Imbalance) YES/NO | Y2: Dynamic Providers Only | AC2: Dynamic Providers only | AJ2: Please indicate as per detail change provision if you are adding volume | AK2: Please state the accepted tender that you are stacking onto | AL2: Please state if this is an all or nothing bid. Clearly reference what lines are included in each all or nothing bid | AM2: Please indicate if this is a mutually exclusive tender | AN2: Non-Dynamic Providers | AP2: Comments
L3: Working Days (Mon-Fri) | O3: Saturdays | R3: Sundays/Bank Holidays | U3: Availability Fee (£/h) | V3: Nomination Fee (£/h) | W3: Window Initiation Fee (£/window) | Y3: Maximum Part Load Point (MW) | Z3: Minimum Part Load Point (MW) | AA3: Minimum MEL (MW) | AB3: Maximum SEL (MW) | AN3: Volume of Response Tendered
L4: From | M4: To | N4: Duration (h) | O4: From | P4: To | Q4: Duration (h) | R4: From | S4: To | T4: Duration (h) | AC4: Primary Response (max.) @ 0.2Hz (MW) | AD4: Primary Response (max.) @ 0.5Hz (MW) | AE4: Primary Response (max.) @ 0.8Hz (MW) | AF4: Secondary Response (max.) @ 0.2/0.2Hz (MW) | AG4: Secondary Response (max.) @ 0.5/0.5Hz (MW) | AH4: High Frequency Response (max.) @ 0.2Hz (MW) | AI4: High Frequency Response (max.) @ 0.5Hz (MW) | AN4: Automatic Response Energy Deliverable by 10s (MW) | AO4: Automatic Response Energy Deliverable by 30s (MW)
A5: 136 | D5: Example Company | E5: Ex-FFR-1 | F5: TO connection | G5: Wind | H5: =#REF! ->  | I5: =#REF! ->  | J5: =IFERROR(TEXT(H5,"DD.MM.YY")&" - "&TEXT(I5,"DD.MM.YY")&" ("&DATEDIF(H5,I5+1,"m")&" months)","Tender End Date is Before Start Date") -> Tender End Date is Before Start Date | K5: As per FFR framework agreement | L5: 2300 | M5: 700 | N5: =IF(L5>M5, (2400-L5+M5)/100, IF(AND(L5="",M5="",L5=M5), "", IF(L5=M5,24,(M5-L5)/100))) -> 8 | O5: 2300 | P5: 700 | Q5: =IF(O5>P5, (2400-O5+P5)/100, IF(AND(O5="",P5="",O5=P5), "", IF(O5=P5,24,(P5-O5)/100))) -> 8 | R5: 2300 | S5: 700 | T5: =IF(R5>S5, (2400-R5+S5)/100, IF(AND(R5="",S5="",R5=S5), "", IF(R5=S5,24,(S5-R5)/100))) -> 8 | U5: 100 | V5: 600 | W5: - | X5: - | Y5: - | Z5: - | AA5: - | AB5: - | AC5: - | AD5: - | AE5: - | AF5: - | AG5: - | AH5: - | AI5: - | AJ5: - | AK5: - | AN5: - | AO5: - | AP5: -
A6: 136 | D6: Example Company | E6: =E5 -> Ex-FFR-1 | F6: DNO connection | G6: Gas | H6: =H5 ->  | I6: =I5 ->  | J6: =IFERROR(TEXT(H6,"DD.MM.YY")&" - "&TEXT(I6,"DD.MM.YY")&" ("&DATEDIF(H6,I6+1,"m")&" months)","Tender End Date is Before Start Date") -> Tender End Date is Before Start Date | K6: As per FFR framework agreement | L6: 700 | M6: 2300 | N6: 16 | O6: 700 | P6: 2300 | Q6: 16 | R6: 700 | S6: 2300 | T6: 16 | U6: 600 | V6: 100 | W6: - | X6: - | Y6: - | Z6: - | AA6: - | AB6: - | AC6: - | AD6: - | AE6: - | AF6: - | AG6: - | AH6: - | AI6: - | AJ6: - | AK6: - | AN6: - | AO6: - | AP6: -
A7: =A5+0.001 -> 136.001 | B7: Accepted | C7: NA | D7: ATTUNE ENERGY | E7: ERNES-1 | F7: DNO connection | G7: Bio Fuel | H7: 2021-05-01 | I7: 2021-05-31 | J7: 01.05.21 - 31.05.21 (1 months) | K7: As per FFR framework agreement | L7: 700 | M7: 1100 | N7: 4 | O7: 700 | P7: 1100 | Q7: 4 | R7: 700 | S7: 1100 | T7: 4 | U7: =20*2.5 -> 50 | AO7: 20
A8: =A7+0.001 -> 136.002 | B8: Accepted | C8: NA | D8: ATTUNE ENERGY | E8: ERNES-1 | F8: DNO connection | G8: Bio Fuel | H8: 2021-05-01 | I8: 2021-05-31 | J8: 01.05.21 - 31.05.21 (1 months) | K8: As per FFR framework agreement | L8: 1100 | M8: 1500 | N8: 4 | O8: 1100 | P8: 1500 | Q8: 4 | R8: 1100 | S8: 1500 | T8: 4 | U8: 51 | AO8: 20
A9: 136.003 | B9: Rejected | C9: 4 | D9: REstore Flexpond UK Ltd | E9: REST-1 | F9: DNO connection | G9: Multiple Fuel Type | H9: 2021-04-30 | I9: 2021-05-31 | J9: 30.04.21 - 31.05.21 (1 months) | K9: As per FFR framework agreement | L9: 2300 | M9: 1500 | N9: =IF(L9>M9, (2400-L9+M9)/100, IF(AND(L9="",M9="",L9=M9), "", IF(L9=M9,24,(M9-L9)/100))) -> 16 | O9: 2300 | P9: 1500 | Q9: =IF(O9>P9, (2400-O9+P9)/100, IF(AND(O9="",P9="",O9=P9), "", IF(O9=P9,24,(P9-O9)/100))) -> 16 | R9: 2300 | S9: 1500 | T9: =IF(R9>S9, (2400-R9+S9)/100, IF(AND(R9="",S9="",R9=S9), "", IF(R9=S9,24,(S9-R9)/100))) -> 16 | U9: 165.92 | V9: 0 | AC9: 6.4 | AD9: 16 | AE9: 16 | AF9: 6.4 | AG9: 16 | AH9: 6.4 | AI9: 16 | AL9: A | AM9: Mutually Exclusive to C
A10: 136.004 | B10: Rejected | C10: 4 | D10: REstore Flexpond UK Ltd | E10: REST-1 | F10: DNO connection | G10: Multiple Fuel Type | H10: 2021-05-01 | I10: 2021-05-31 | J10: 01.05.21 - 31.05.21 (1 months) | K10: As per FFR framework agreement | L10: 1500 | M10: 2300 | N10: =IF(L10>M10, (2400-L10+M10)/100, IF(AND(L10="",M10="",L10=M10), "", IF(L10=M10,24,(M10-L10)/100))) -> 8 | O10: 1500 | P10: 2300 | Q10: =IF(O10>P10, (2400-O10+P10)/100, IF(AND(O10="",P10="",O10=P10), "", IF(O10=P10,24,(P10-O10)/100))) -> 8 | R10: 1500 | S10: 2300 | T10: =IF(R10>S10, (2400-R10+S10)/100, IF(AND(R10="",S10="",R10=S10), "", IF(R10=S10,24,(S10-R10)/100))) -> 8 | U10: 176.16 | V10: 0 | AC10: 6.4 | AD10: 16 | AE10: 16 | AF10: 6.4 | AG10: 16 | AH10: 6.4 | AI10: 16 | AL10: B | AM10: Mutually Exclusive to C
A11: 136.005 | B11: Accepted | C11: NA | D11: REstore Flexpond UK Ltd | E11: REST-1 | F11: DNO connection | G11: Multiple Fuel Type | H11: 2021-04-30 | I11: 2021-05-31 | J11: 30.04.21 - 31.05.21 (1 months) | K11: As per FFR framework agreement | L11: 2300 | M11: 2300 | N11: 24 | O11: 2300 | P11: 2300 | Q11: 24 | R11: 2300 | S11: 2300 | T11: 24 | U11: 169.28 | V11: 0 | AC11: 6.4 | AD11: 16 | AE11: 16 | AF11: 6.4 | AG11: 16 | AH11: 6.4 | AI11: 16 | AL11: C | AM11: Mutually Exclusive to A + B
A12: 136.006 | B12: Accepted | C12: NA | D12: Centrica Business Solutions Optimisation UK Ltd | E12: CBS0-1 | F12: DNO connection | G12: DSF: Distributed generation (onsite) | H12: 2021-05-01 | I12: 2021-05-31 | J12: 01.05.21 - 31.05.21 (1 months) | K12: As per FFR framework agreement | L12: 700 | M12: 2300 | N12: 16 | O12: 700 | P12: 2300 | Q12: 16 | R12: 700 | S12: 2300 | T12: 16 | U12: 3.98 | V12: 0 | AO12: 2
A13: 136.007 | B13: Accepted | C13: NA | D13: City Energy Management Services Ltd. | E13: CMFH-1 | F13: DNO connection | G13: DSF: Load response | H13: 2021-05-01 | I13: 2021-05-31 | J13: 01.05.21 - 31.05.21 (1 months) | K13: As per FFR framework agreement | L13: 700 | M13: 1500 | N13: =IF(L13>M13, (2400-L13+M13)/100, IF(AND(L13="",M13="",L13=M13), "", IF(L13=M13,24,(M13-L13)/100))) -> 8 | O13: 700 | P13: 1500 | Q13: =IF(O13>P13, (2400-O13+P13)/100, IF(AND(O13="",P13="",O13=P13), "", IF(O13=P13,24,(P13-O13)/100))) -> 8 | R13: 700 | S13: 1500 | T13: =IF(R13>S13, (2400-R13+S13)/100, IF(AND(R13="",S13="",R13=S13), "", IF(R13=S13,24,(S13-R13)/100))) -> 8 | U13: 0.79 | AO13: 1
A14: 136.008 | B14: Accepted | C14: NA | D14: City Energy Management Services Ltd. | E14: CMFH-1 | F14: DNO connection | G14: DSF: Load response | H14: 2021-05-01 | I14: 2021-05-31 | J14: 01.05.21 - 31.05.21 (1 months) | K14: As per FFR framework agreement | L14: 1900 | M14: 2300 | N14: =IF(L14>M14, (2400-L14+M14)/100, IF(AND(L14="",M14="",L14=M14), "", IF(L14=M14,24,(M14-L14)/100))) -> 4 | O14: 1900 | P14: 2300 | Q14: =IF(O14>P14, (2400-O14+P14)/100, IF(AND(O14="",P14="",O14=P14), "", IF(O14=P14,24,(P14-O14)/100))) -> 4 | R14: 1900 | S14: 2300 | T14: =IF(R14>S14, (2400-R14+S14)/100, IF(AND(R14="",S14="",R14=S14), "", IF(R14=S14,24,(S14-R14)/100))) -> 4 | U14: 0.79 | AO14: 1
A15: 136.009 | B15: Accepted | C15: NA | D15: City Energy Management Services Ltd. | E15: CMFH-2 | F15: DNO connection | G15: DSF: Load response | H15: 2021-05-01 | I15: 2021-05-31 | J15: 01.05.21 - 31.05.21 (1 months) | K15: As per FFR framework agreement | L15: 700 | M15: 1500 | N15: 8 | O15: 700 | P15: 1500 | Q15: 8 | R15: 700 | S15: 1500 | T15: 8 | U15: 1.69 | AO15: 1
A16: 136.01 | B16: Accepted | C16: NA | D16: City Energy Management Services Ltd. | E16: CMFH-2 | F16: DNO connection | G16: DSF: Load response | H16: 2021-05-01 | I16: 2021-05-31 | J16: 01.05.21 - 31.05.21 (1 months) | K16: As per FFR framework agreement | L16: 1900 | M16: 2300 | N16: 4 | O16: 1900 | P16: 2300 | Q16: 4 | R16: 1900 | S16: 1900 | T16: 24 | U16: 1.29 | AO16: 1
A17: 136.011 | B17: Accepted | C17: NA | D17: Drax Power Limited | E17: DRAX_01Z | F17: TO connection | G17: Bio Fuel | H17: 2021-04-30 | I17: 2021-05-31 | J17: 30.04.21 - 31.05.21 (1 months) | K17: As per FFR framework agreement | L17: 2300 | M17: 2300 | N17: =IF(L17>M17, (2400-L17+M17)/100, IF(AND(L17="",M17="",L17=M17), "", IF(L17=M17,24,(M17-L17)/100))) -> 24 | O17: 2300 | P17: 2300 | Q17: =IF(O17>P17, (2400-O17+P17)/100, IF(AND(O17="",P17="",O17=P17), "", IF(O17=P17,24,(P17-O17)/100))) -> 24 | R17: 2300 | S17: 2300 | T17: =IF(R17>S17, (2400-R17+S17)/100, IF(AND(R17="",S17="",R17=S17), "", IF(R17=S17,24,(S17-R17)/100))) -> 24 | U17: 194 | V17: 0 | X17: YES | Y17: 660 | Z17: 420 | AA17: 420 | AB17: 300 | AC17: 0 | AD17: 0 | AE17: 0 | AF17: 0 | AG17: 0 | AH17: 24 | AI17: 68 | AJ17: No | AK17: n/a | AM17: n/a
A18: 136.012 | B18: Rejected | C18: 2 | D18: EDF Energy Customers Limited | E18: EDFE-4 | F18: DNO connection | G18: DSF: Storage (for export) | H18: 2021-04-30 | I18: 2021-05-31 | J18: 30.04.21 - 31.05.21 (1 months) | K18: As per FFR framework agreement | L18: 2300 | M18: 2300 | N18: =IF(L18>M18, (2400-L18+M18)/100, IF(AND(L18="",M18="",L18=M18), "", IF(L18=M18,24,(M18-L18)/100))) -> 24 | O18: 2300 | P18: 2300 | Q18: =IF(O18>P18, (2400-O18+P18)/100, IF(AND(O18="",P18="",O18=P18), "", IF(O18=P18,24,(P18-O18)/100))) -> 24 | R18: 2300 | S18: 2300 | T18: =IF(R18>S18, (2400-R18+S18)/100, IF(AND(R18="",S18="",R18=S18), "", IF(R18=S18,24,(S18-R18)/100))) -> 24 | U18: 114 | AC18: 2.4 | AD18: 6 | AE18: 6 | AF18: 2.4 | AG18: 6 | AH18: 2.4 | AI18: 6
A19: 136.013 | B19: Rejected | C19: 2 | D19: EDF Energy Customers Limited | E19: AG -GEDF01 | F19: DNO connection | G19: DSF: Storage (for export) | H19: 2021-04-30 | I19: 2021-05-31 | J19: 30.04.21 - 31.05.21 (1 months) | K19: As per FFR framework agreement | L19: 2300 | M19: 2300 | N19: =IF(L19>M19, (2400-L19+M19)/100, IF(AND(L19="",M19="",L19=M19), "", IF(L19=M19,24,(M19-L19)/100))) -> 24 | O19: 2300 | P19: 2300 | Q19: =IF(O19>P19, (2400-O19+P19)/100, IF(AND(O19="",P19="",O19=P19), "", IF(O19=P19,24,(P19-O19)/100))) -> 24 | R19: 2300 | S19: 2300 | T19: =IF(R19>S19, (2400-R19+S19)/100, IF(AND(R19="",S19="",R19=S19), "", IF(R19=S19,24,(S19-R19)/100))) -> 24 | U19: 382 | AC19: 8 | AD19: 20 | AE19: 20 | AF19: 8 | AG19: 20 | AH19: 8 | AI19: 20
A20: 136.014 | B20: Rejected | C20: 2 | D20: EDF Energy Customers Limited | E20: AG -GEDF02 | F20: DNO connection | G20: DSF: Storage (for export) | H20: 2021-04-30 | I20: 2021-05-31 | J20: 30.04.21 - 31.05.21 (1 months) | K20: As per FFR framework agreement | L20: 2300 | M20: 2300 | N20: 24 | O20: 2300 | P20: 2300 | Q20: 24 | R20: 2300 | S20: 2300 | T20: 24 | U20: 381 | AC20: 8 | AD20: 20 | AE20: 20 | AF20: 8 | AG20: 20 | AH20: 8 | AI20: 20
A21: 136.015 | B21: Accepted | C21: NA | D21: EDF Energy Customers Limited | E21: EDFE-2 | F21: DNO connection | G21: DSF: Storage (for export) | H21: 2021-04-30 | I21: 2021-05-31 | J21: 30.04.21 - 31.05.21 (1 months) | K21: As per FFR framework agreement | L21: 2300 | M21: 2300 | N21: 24 | O21: 2300 | P21: 2300 | Q21: 24 | R21: 2300 | S21: 2300 | T21: 24 | U21: 87.92 | AC21: 3.2 | AD21: 8 | AE21: 8 | AF21: 3.2 | AG21: 8 | AH21: 3.2 | AI21: 8
A22: 136.016 | B22: Rejected | C22: 2 | D22: EDF Energy Customers Limited | E22: EDFE-6 | F22: DNO connection | G22: DSF: Storage (for export) | H22: 2021-04-30 | I22: 2021-05-31 | J22: 30.04.21 - 31.05.21 (1 months) | K22: As per FFR framework agreement | L22: 2300 | M22: 2300 | N22: 24 | O22: 2300 | P22: 2300 | Q22: 24 | R22: 2300 | S22: 2300 | T22: 24 | U22: 133.63 | AC22: 2.8 | AD22: 7 | AE22: 7 | AF22: 2.8 | AG22: 7 | AH22: 2.8 | AI22: 7
A23: 136.017 | B23: Rejected | C23: 2 | D23: EDF Energy Customers Limited | E23: EDFE-7 | F23: DNO connection | G23: DSF: Storage (for export) | H23: 2021-04-30 | I23: 2021-05-31 | J23: 30.04.21 - 31.05.21 (1 months) | K23: As per FFR framework agreement | L23: 2300 | M23: 2300 | N23: 24 | O23: 2300 | P23: 2300 | Q23: 24 | R23: 2300 | S23: 2300 | T23: 24 | U23: 959.91 | AC23: 19.6 | AD23: 49 | AE23: 49 | AF23: 19.6 | AG23: 49 | AH23: 15.6 | AI23: 39
A24: 136.018 | B24: Accepted | C24: NA | D24: EDF Energy Customers Limited | E24: EDFE-8 | F24: DNO connection | G24: DSF: Storage (for export) | H24: 2021-04-30 | I24: 2021-05-31 | J24: 30.04.21 - 31.05.21 (1 months) | K24: As per FFR framework agreement | L24: 2300 | M24: 700 | N24: 8 | O24: 2300 | P24: 700 | Q24: 8 | R24: 2300 | S24: 700 | T24: 8 | U24: 210 | AC24: 8 | AD24: 20 | AE24: 20 | AF24: 8 | AG24: 20 | AH24: 8 | AI24: 20 | AL24: A
A25: 136.019 | B25: Accepted | C25: NA | D25: EDF Energy Customers Limited | E25: EDFE-8 | F25: DNO connection | G25: DSF: Storage (for export) | H25: 2021-05-01 | I25: 2021-05-31 | J25: 01.05.21 - 31.05.21 (1 months) | K25: As per FFR framework agreement | L25: 700 | M25: 1500 | N25: 8 | O25: 700 | P25: 1500 | Q25: 8 | R25: 700 | S25: 1500 | T25: 8 | U25: 220 | AC25: 8 | AD25: 20 | AE25: 20 | AF25: 8 | AG25: 20 | AH25: 8 | AI25: 20 | AL25: A
A26: 136.02 | B26: Accepted | C26: NA | D26: EDF Energy Customers Limited | E26: EDFE-8 | F26: DNO connection | G26: DSF: Storage (for export) | H26: 2021-05-01 | I26: 2021-05-31 | J26: 01.05.21 - 31.05.21 (1 months) | K26: As per FFR framework agreement | L26: 1500 | M26: 2300 | N26: 8 | O26: 1500 | P26: 2300 | Q26: 8 | R26: 1500 | S26: 2300 | T26: 8 | U26: 230 | AC26: 8 | AD26: 20 | AE26: 20 | AF26: 8 | AG26: 20 | AH26: 8 | AI26: 20 | AL26: A
A27: =A26+0.001 -> 136.021 | B27: Accepted | C27: NA | D27: First Renewable Alpha Limited | E27: TREGN-1 | F27: DNO connection | G27: Diesel | H27: 2021-05-01 | I27: 2021-05-31 | J27: 01.05.21 - 31.05.21 (1 months) | K27: AS per FFR framework agreement | L27: 700 | M27: 1500 | N27: 8 | O27: 700 | P27: 1500 | Q27: 8 | R27: 700 | S27: 1500 | T27: 8 | U27: 35 | AO27: 20
A28: =A27+0.001 -> 136.022 | B28: Accepted | C28: NA | D28: First Renewable Alpha Limited | E28: TREGN-1 | F28: DNO connection | G28: Diesel | H28: 2021-05-01 | I28: 2021-05-31 | J28: 01.05.21 - 31.05.21 (1 months) | K28: As per FFR framework agreement | L28: 1500 | M28: 2300 | N28: 8 | O28: 1500 | P28: 2300 | Q28: 8 | R28: 1500 | S28: 2300 | T28: 8 | U28: 30 | AO28: 20
A29: =A28+0.001 -> 136.023 | B29: Rejected | C29: 2 | D29: Flexitricity Limited | E29: AG-EFLX01 | F29: DNO connection | G29: DSF: Storage (for export) | H29: 2021-04-30 | I29: 2021-05-31 | J29: 30.04.21 - 31.05.21 (1 months) | K29: As per FFR framework agreement | L29: 2300 | M29: 2300 | N29: =IF(L29>M29, (2400-L29+M29)/100, IF(AND(L29="",M29="",L29=M29), "", IF(L29=M29,24,(M29-L29)/100))) -> 24 | O29: 2300 | P29: 2300 | Q29: =IF(O29>P29, (2400-O29+P29)/100, IF(AND(O29="",P29="",O29=P29), "", IF(O29=P29,24,(P29-O29)/100))) -> 24 | R29: 2300 | S29: 2300 | T29: =IF(R29>S29, (2400-R29+S29)/100, IF(AND(R29="",S29="",R29=S29), "", IF(R29=S29,24,(S29-R29)/100))) -> 24 | U29: 384.56 | X29: YES | AC29: 7.6 | AD29: 19 | AE29: 19 | AF29: 7.6 | AG29: 19 | AH29: 7.6 | AI29: 19
A30: =A29+0.001 -> 136.024 | B30: Rejected | C30: 2 | D30: Flexitricity Limited | E30: AG-BFLX01 | F30: DNO connection | G30: DSF: Storage (for export) | H30: 2021-04-30 | I30: 2021-05-31 | J30: 30.04.21 - 31.05.21 (1 months) | K30: As per FFR framework agreement | L30: 2300 | M30: 2300 | N30: =IF(L30>M30, (2400-L30+M30)/100, IF(AND(L30="",M30="",L30=M30), "", IF(L30=M30,24,(M30-L30)/100))) -> 24 | O30: 2300 | P30: 2300 | Q30: =IF(O30>P30, (2400-O30+P30)/100, IF(AND(O30="",P30="",O30=P30), "", IF(O30=P30,24,(P30-O30)/100))) -> 24 | R30: 2300 | S30: 2300 | T30: =IF(R30>S30, (2400-R30+S30)/100, IF(AND(R30="",S30="",R30=S30), "", IF(R30=S30,24,(S30-R30)/100))) -> 24 | U30: 142.45 | X30: YES | AC30: 2.8 | AD30: 7 | AE30: 7 | AF30: 2.8 | AG30: 7 | AH30: 2.8 | AI30: 7
A31: =A30+0.001 -> 136.025 | B31: Rejected | C31: 2 | D31: Flexitricity Limited | E31: AG-MFLX02 | F31: DNO connection | G31: DSF: Storage (for export) | H31: 2021-04-30 | I31: 2021-05-31 | J31: 30.04.21 - 31.05.21 (1 months) | K31: As per FFR framework agreement | L31: 2300 | M31: 2300 | N31: 24 | O31: 2300 | P31: 2300 | Q31: 24 | R31: 2300 | S31: 2300 | T31: 24 | U31: 974.61 | X31: YES | AC31: 19.96 | AD31: 49 | AE31: 49 | AF31: 19.96 | AG31: 49 | AH31: 19.96 | AI31: 49
A32: 136.026 | B32: Rejected | C32: 2 | D32: Flexitricity Limited | E32: AG-FLX00L | F32: DNO connection | G32: DSF: Storage (for export) | H32: 2021-04-30 | I32: 2021-05-31 | J32: 30.04.21 - 31.05.21 (1 months) | K32: As per FFR framework agreement | L32: 2300 | M32: 2300 | N32: 24 | O32: 2300 | P32: 2300 | Q32: 24 | R32: 2300 | S32: 2300 | T32: 24 | U32: 83.08 | X32: YES | AC32: 1.6 | AD32: 4 | AE32: 4 | AF32: 1.6 | AG32: 4 | AH32: 1.6 | AI32: 4
A33: 136.027 | B33: Rejected | C33: 2 | D33: Flexitricity Limited | E33: AG-BFLX02 | F33: DNO connection | G33: DSF: Storage (for export) | H33: 2021-04-30 | I33: 2021-05-31 | J33: 30.04.21 - 31.05.21 (1 months) | K33: As per FFR framework agreement | L33: 2300 | M33: 2300 | N33: 24 | O33: 2300 | P33: 2300 | Q33: 24 | R33: 2300 | S33: 2300 | T33: 24 | U33: 203.1 | X33: YES | AC33: 4 | AD33: 10 | AE33: 10 | AF33: 4 | AG33: 10 | AH33: 4 | AI33: 10
A34: 136.028 | B34: Rejected | C34: 2 | D34: GridBeyond Limited | E34: GBND-2 | F34: DNO connection | G34: DSF: Load response | H34: 2021-04-30 | I34: 2021-05-31 | J34: 30.04.21 - 31.05.21 (1 months) | K34: As per FFR framework agreement | L34: 2300 | M34: 700 | N34: 8 | U34: 241.56 | AC34: 10 | AD34: 25 | AE34: 25 | AF34: 10 | AG34: 25 | AH34: 6.4 | AI34: 16 | AL34: A
A35: 136.029 | B35: Rejected | C35: 2 | D35: GridBeyond Limited | E35: GBND-2 | F35: DNO connection | G35: DSF: Load response | H35: 2021-05-01 | I35: 2021-05-31 | J35: 01.05.21 - 31.05.21 (1 months) | K35: As per FFR framework agreement | L35: 700 | M35: 1500 | N35: 8 | U35: 263.52 | AC35: 11.2 | AD35: 28 | AE35: 28 | AF35: 11.2 | AG35: 28 | AH35: 6.4 | AI35: 16 | AL35: B
A36: 136.03 | B36: Rejected | C36: 2 | D36: GridBeyond Limited | E36: GBND-2 | F36: DNO connection | G36: DSF: Load response | H36: 2021-05-01 | I36: 2021-05-31 | J36: 01.05.21 - 31.05.21 (1 months) | K36: As per FFR framework agreement | L36: 1500 | M36: 2300 | N36: 8 | U36: 204.96 | AC36: 8 | AD36: 20 | AE36: 20 | AF36: 8 | AG36: 20 | AH36: 6.4 | AI36: 16 | AL36: C
A37: 136.031 | B37: Rejected | C37: 2 | D37: GridBeyond Limited | E37: GBND-2 | F37: DNO connection | G37: DSF: Load response | H37: 2021-04-30 | I37: 2021-05-31 | J37: 30.04.21 - 31.05.21 (1 months) | K37: As per FFR framework agreement | O37: 2300 | P37: 700 | Q37: 8 | U37: 146.4 | AC37: 4.8 | AD37: 12 | AE37: 12 | AF37: 4.8 | AG37: 12 | AH37: 6.4 | AI37: 16 | AL37: A
A38: 136.032 | B38: Rejected | C38: 2 | D38: GridBeyond Limited | E38: GBND-2 | F38: DNO connection | G38: DSF: Load response | H38: 2021-05-01 | I38: 2021-05-31 | J38: 01.05.21 - 31.05.21 (1 months) | K38: As per FFR framework agreement | O38: 700 | P38: 1500 | Q38: 8 | U38: 131.76 | AC38: 4 | AD38: 10 | AE38: 10 | AF38: 4 | AG38: 10 | AH38: 6.4 | AI38: 16 | AL38: B
A39: 136.033 | B39: Rejected | C39: 2 | D39: GridBeyond Limited | E39: GBND-2 | F39: DNO connection | G39: DSF: Load response | H39: 2021-05-01 | I39: 2021-05-31 | J39: 01.05.21 - 31.05.21 (1 months) | K39: As per FFR framework agreement | O39: 1500 | P39: 2300 | Q39: 8 | U39: 124.44 | AC39: 3.6 | AD39: 9 | AE39: 9 | AF39: 3.6 | AG39: 9 | AH39: 6.4 | AI39: 16 | AL39: C
A40: 136.034 | B40: Rejected | C40: 2 | D40: GridBeyond Limited | E40: GBND-2 | F40: DNO connection | G40: DSF: Load response | H40: 2021-04-30 | I40: 2021-05-31 | J40: 30.04.21 - 31.05.21 (1 months) | K40: As per FFR framework agreement | R40: 2300 | S40: 700 | T40: 8 | U40: 102.48 | AC40: 2.8 | AD40: 7 | AE40: 7 | AF40: 2.8 | AG40: 7 | AH40: 5.6 | AI40: 14 | AL40: A
A41: 136.035 | B41: Rejected | C41: 2 | D41: GridBeyond Limited | E41: GBND-2 | F41: DNO connection | G41: DSF: Load response | H41: 2021-05-01 | I41: 2021-05-31 | J41: 01.05.21 - 31.05.21 (1 months) | K41: As per FFR framework agreement | R41: 700 | S41: 1500 | T41: 8 | U41: 102.48 | AC41: 2.8 | AD41: 7 | AE41: 7 | AF41: 2.8 | AG41: 7 | AH41: 5.6 | AI41: 14 | AL41: B
A42: 136.036 | B42: Rejected | C42: 2 | D42: GridBeyond Limited | E42: GBND-2 | F42: DNO connection | G42: DSF: Load response | H42: 2021-05-01 | I42: 2021-05-31 | J42: 01.05.21 - 31.05.21 (1 months) | K42: As per FFR framework agreement | R42: 1500 | S42: 2300 | T42: 8 | U42: 109.8 | AC42: 3.2 | AD42: 8 | AE42: 8 | AF42: 3.2 | AG42: 8 | AH42: 5.6 | AI42: 14 | AL42: C
A43: 136.037 | B43: Accepted | C43: NA | D43: GridBeyond Limited | E43: ENDSR-1 | F43: DNO connection | G43: DSF: Load response | H43: 2021-05-01 | I43: 2021-05-31 | J43: 01.05.21 - 31.05.21 (1 months) | K43: As per FFR framework agreement | L43: 700 | M43: 1100 | N43: 4 | U43: 7.6 | AO43: 4
A44: 136.038 | B44: Accepted | C44: NA | D44: GridBeyond Limited | E44: ENDSR-1 | F44: DNO connection | G44: DSF: Load response | H44: 2021-05-01 | I44: 2021-05-31 | J44: 01.05.21 - 31.05.21 (1 months) | K44: As per FFR framework agreement | L44: 1100 | M44: 1500 | N44: 4 | U44: 9.5 | AO44: 5
A45: 136.039 | B45: Accepted | C45: NA | D45: GridBeyond Limited | E45: ENDSR-1 | F45: DNO connection | G45: DSF: Load response | H45: 2021-05-01 | I45: 2021-05-31 | J45: 01.05.21 - 31.05.21 (1 months) | K45: As per FFR framework agreement | L45: 1900 | M45: 2300 | N45: 4 | U45: 9.5 | AO45: 5
A46: 136.04 | B46: Accepted | C46: NA | D46: GridBeyond Limited | E46: ENDSR-2 | F46: DNO connection | G46: DSF: Load response | H46: 2021-05-01 | I46: 2021-05-31 | J46: 01.05.21 - 31.05.21 (1 months) | K46: As per FFR framework agreement | L46: 700 | M46: 1100 | N46: 4 | U46: 9.6 | AO46: 4
A47: 136.041 | B47: Accepted | C47: NA | D47: GridBeyond Limited | E47: ENDSR-2 | F47: DNO connection | G47: DSF: Load response | H47: 2021-05-01 | I47: 2021-05-31 | J47: 01.05.21 - 31.05.21 (1 months) | K47: As per FFR framework agreement | L47: 1100 | M47: 1500 | N47: 4 | U47: 9.6 | AO47: 4
A48: 136.042 | B48: Rejected | C48: 2 | D48: GridBeyond Limited | E48: ENDSR-2 | F48: DNO connection | G48: DSF: Load response | H48: 2021-05-01 | I48: 2021-05-31 | J48: 01.05.21 - 31.05.21 (1 months) | K48: As per FFR framework agreement | L48: 1900 | M48: 2300 | N48: 4 | U48: 9.6 | AO48: 4
A49: 136.043 | B49: Accepted | C49: NA | D49: GridBeyond Limited | E49: ENDSR-4 | F49: DNO connection | G49: DSF: Load response | H49: 2021-05-01 | I49: 2021-05-31 | J49: 01.05.21 - 31.05.21 (1 months) | K49: As per FFR framework agreement | L49: 700 | M49: 1100 | N49: 4 | U49: 17.4 | AO49: 6
A50: 136.044 | B50: Accepted | C50: NA | D50: GridBeyond Limited | E50: ENDSR-4 | F50: DNO connection | G50: DSF: Load response | H50: 2021-05-01 | I50: 2021-05-31 | J50: 01.05.21 - 31.05.21 (1 months) | K50: As per FFR framework agreement | L50: 1100 | M50: 1500 | N50: 4 | U50: 17.4 | AO50: 6
A51: 136.045 | B51: Rejected | C51: 2 | D51: GridBeyond Limited | E51: ENDSR-4 | F51: DNO connection | G51: DSF: Load response | H51: 2021-05-01 | I51: 2021-05-31 | J51: 01.05.21 - 31.05.21 (1 months) | K51: As per FFR framework agreement | L51: 1900 | M51: 2300 | N51: 4 | U51: 14.5 | AO51: 5
A52: 136.046 | B52: Rejected | C52: 2 | D52: Habitat Energy Limited | E52: HAB2-FFR | F52: DNO connection | G52: DSF: Storage (for export) | H52: 2021-04-30 | I52: 2021-05-31 | J52: 30.04.21 - 31.05.21 (1 months) | K52: As per FFR framework agreement | L52: 2300 | M52: 2300 | N52: =IF(L52>M52, (2400-L52+M52)/100, IF(AND(L52="",M52="",L52=M52), "", IF(L52=M52,24,(M52-L52)/100))) -> 24 | O52: 2300 | P52: 2300 | Q52: =IF(O52>P52, (2400-O52+P52)/100, IF(AND(O52="",P52="",O52=P52), "", IF(O52=P52,24,(P52-O52)/100))) -> 24 | R52: 2300 | S52: 2300 | T52: =IF(R52>S52, (2400-R52+S52)/100, IF(AND(R52="",S52="",R52=S52), "", IF(R52=S52,24,(S52-R52)/100))) -> 24 | U52: 95.95 | V52: - | W52: - | AC52: 2 | AD52: 5 | AE52: 5 | AF52: 2 | AG52: 5 | AH52: 2 | AI52: 5
A53: 136.047 | B53: Rejected | C53: 2 | D53: Habitat Energy Limited | E53: HAB3-FFR | F53: DNO connection | G53: DSF: Storage (for export) | H53: 2021-04-30 | I53: 2021-05-31 | J53: 30.04.21 - 31.05.21 (1 months) | K53: As per FFR framework agreement | L53: 2300 | M53: 2300 | N53: =IF(L53>M53, (2400-L53+M53)/100, IF(AND(L53="",M53="",L53=M53), "", IF(L53=M53,24,(M53-L53)/100))) -> 24 | O53: 2300 | P53: 2300 | Q53: =IF(O53>P53, (2400-O53+P53)/100, IF(AND(O53="",P53="",O53=P53), "", IF(O53=P53,24,(P53-O53)/100))) -> 24 | R53: 2300 | S53: 2300 | T53: =IF(R53>S53, (2400-R53+S53)/100, IF(AND(R53="",S53="",R53=S53), "", IF(R53=S53,24,(S53-R53)/100))) -> 24 | U53: 289.35 | V53: - | W53: - | AC53: 6 | AD53: 15 | AE53: 15 | AF53: 6 | AG53: 15 | AH53: 6 | AI53: 15
A54: 136.048 | B54: Rejected | C54: 2 | D54: Habitat Energy Limited | E54: AG-HEL00G | F54: DNO connection | G54: DSF: Storage (for export) | H54: 2021-04-30 | I54: 2021-05-31 | J54: 30.04.21 - 31.05.21 (1 months) | K54: As per FFR framework agreement | L54: 2300 | M54: 2300 | N54: 24 | O54: 2300 | P54: 2300 | Q54: 24 | R54: 2300 | S54: 2300 | T54: 24 | U54: 955.01 | V54: - | W54: - | X54: Yes | AC54: 19.6 | AD54: 49 | AE54: 49 | AF54: 19.6 | AG54: 49 | AH54: 19.6 | AI54: 49
A55: 136.049 | B55: Rejected | C55: 2 | D55: Habitat Energy Limited | E55: AG-HEL01H | F55: DNO connection | G55: DSF: Storage (for export) | H55: 2021-04-30 | I55: 2021-05-31 | J55: 30.04.21 - 31.05.21 (1 months) | K55: As per FFR framework agreement | L55: 2300 | M55: 2300 | N55: 24 | O55: 2300 | P55: 2300 | Q55: 24 | R55: 2300 | S55: 2300 | T55: 24 | U55: 387.8 | V55: - | W55: - | X55: Yes | AC55: 8 | AD55: 20 | AE55: 20 | AF55: 8 | AG55: 20 | AH55: 6.4 | AI55: 16
A56: 136.05 | B56: Accepted | C56: NA | D56: Kiwi Power Ltd | E56: KIWIDA-1 | F56: DNO connection | G56: DSF: Storage (onsite) | H56: 2021-04-30 | I56: 2021-05-31 | J56: 30.04.21 - 31.05.21 (1 months) | K56: As per FFR framework agreement | L56: 2300 | M56: 2300 | N56: 24 | O56: 2300 | P56: 2300 | Q56: 24 | R56: 2300 | S56: 2300 | T56: 24 | U56: 24 | AC56: 0.8 | AD56: 2 | AE56: 2 | AF56: 0.8 | AG56: 2 | AH56: 0.8 | AI56: 2
A57: 136.051 | B57: Accepted | C57: NA | D57: Kiwi Power Ltd | E57: KIWIE-5 | F57: DNO connection | G57: DSF: Storage (onsite) | H57: 2021-04-30 | I57: 2021-05-31 | J57: 30.04.21 - 31.05.21 (1 months) | K57: As per FFR framework agreement | L57: 2300 | M57: 2300 | N57: 24 | O57: 2300 | P57: 2300 | Q57: 24 | R57: 2300 | S57: 2300 | T57: 24 | U57: 48 | AC57: 1.6 | AD57: 4 | AE57: 4 | AF57: 1.6 | AG57: 4 | AH57: 1.6 | AI57: 4
A58: 136.052 | B58: Rejected | C58: 4 | D58: Limejump Energy Ltd | E58: AG-FLIM01 | F58: TO connection | G58: DSF: Storage (for export) | H58: 2021-04-30 | I58: 2021-05-31 | J58: 30.04.21 - 31.05.21 (1 months) | K58: As per FFR framework agreement | L58: 2300 | M58: 2300 | N58: =IF(L58>M58, (2400-L58+M58)/100, IF(AND(L58="",M58="",L58=M58), "", IF(L58=M58,24,(M58-L58)/100))) -> 24 | O58: 2300 | P58: 2300 | Q58: =IF(O58>P58, (2400-O58+P58)/100, IF(AND(O58="",P58="",O58=P58), "", IF(O58=P58,24,(P58-O58)/100))) -> 24 | R58: 2300 | S58: 2300 | T58: =IF(R58>S58, (2400-R58+S58)/100, IF(AND(R58="",S58="",R58=S58), "", IF(R58=S58,24,(S58-R58)/100))) -> 24 | U58: 83.65 | AC58: 2.8 | AD58: 7 | AE58: 7 | AF58: 2.8 | AG58: 7 | AH58: 2.8 | AI58: 7 | AL58: A | AM58: Cannot be accepted with B or C | AP58: H for 30 minutes only
A59: 136.053 | B59: Accepted | C59: NA | D59: Limejump Energy Ltd | E59: AG-FLIM01 | F59: TO connection | G59: DSF: Storage (for export) | H59: 2021-04-30 | I59: 2021-05-31 | J59: 30.04.21 - 31.05.21 (1 months) | K59: As per FFR framework agreement | L59: 2300 | M59: 700 | N59: =IF(L59>M59, (2400-L59+M59)/100, IF(AND(L59="",M59="",L59=M59), "", IF(L59=M59,24,(M59-L59)/100))) -> 8 | O59: 2300 | P59: 700 | Q59: =IF(O59>P59, (2400-O59+P59)/100, IF(AND(O59="",P59="",O59=P59), "", IF(O59=P59,24,(P59-O59)/100))) -> 8 | R59: 2300 | S59: 700 | T59: =IF(R59>S59, (2400-R59+S59)/100, IF(AND(R59="",S59="",R59=S59), "", IF(R59=S59,24,(S59-R59)/100))) -> 8 | U59: 84.35 | AC59: 2.8 | AD59: 7 | AE59: 7 | AF59: 2.8 | AG59: 7 | AH59: 2.8 | AI59: 7 | AL59: B | AM59: Cannot be accepted with A | AP59: H for 30 minutes only
A60: 136.054 | B60: Accepted | C60: NA | D60: Limejump Energy Ltd | E60: AG-FLIM01 | F60: TO connection | G60: DSF: Storage (for export) | H60: 2021-05-01 | I60: 2021-05-31 | J60: 01.05.21 - 31.05.21 (1 months) | K60: As per FFR framework agreement | L60: 700 | M60: 1500 | N60: 8 | O60: 700 | P60: 1500 | Q60: 8 | R60: 700 | S60: 1500 | T60: 8 | U60: 86.38 | AC60: 2.8 | AD60: 7 | AE60: 7 | AF60: 2.8 | AG60: 7 | AH60: 2.8 | AI60: 7 | AL60: C | AM60: Cannot be accepted with A | AP60: H for 30 minutes only
A61: 136.055 | B61: Rejected | C61: 4 | D61: Limejump Energy Ltd | E61: AG-GLIM01 | F61: TO connection | G61: DSF: Storage (for export) | H61: 2021-04-30 | I61: 2021-05-31 | J61: 30.04.21 - 31.05.21 (1 months) | K61: As per FFR framework agreement | L61: 2300 | M61: 2300 | N61: 24 | O61: 2300 | P61: 2300 | Q61: 24 | R61: 2300 | S61: 2300 | T61: 24 | U61: 22.6 | AC61: 0.8 | AD61: 2 | AE61: 2 | AF61: 0.8 | AG61: 2 | AH61: 0.8 | AI61: 2 | AL61: D | AM61: Cannot be accepted with E or F | AP61: H for 30 minutes only
A62: 136.056 | B62: Accepted | C62: NA | D62: Limejump Energy Ltd | E62: AG-GLIM01 | F62: TO connection | G62: DSF: Storage (for export) | H62: 2021-04-30 | I62: 2021-05-31 | J62: 30.04.21 - 31.05.21 (1 months) | K62: As per FFR framework agreement | L62: 2300 | M62: 700 | N62: 8 | O62: 2300 | P62: 700 | Q62: 8 | R62: 2300 | S62: 700 | T62: 8 | U62: 23 | AC62: 0.8 | AD62: 2 | AE62: 2 | AF62: 0.8 | AG62: 2 | AH62: 0.8 | AI62: 2 | AL62: E | AM62: Cannot be accepted with D | AP62: H for 30 minutes only
A63: 136.057 | B63: Accepted | C63: NA | D63: Limejump Energy Ltd | E63: AG-GLIM01 | F63: TO connection | G63: DSF: Storage (for export) | H63: 2021-05-01 | I63: 2021-05-31 | J63: 01.05.21 - 31.05.21 (1 months) | K63: As per FFR framework agreement | L63: 700 | M63: 1500 | N63: 8 | O63: 700 | P63: 1500 | Q63: 8 | R63: 700 | S63: 1500 | T63: 8 | U63: 24 | AC63: 0.8 | AD63: 2 | AE63: 2 | AF63: 0.8 | AG63: 2 | AH63: 0.8 | AI63: 2 | AL63: F | AM63: Cannot be accepted with D | AP63: H for 30 minutes only
A64: 136.058 | B64: Rejected | C64: 4 | D64: Limejump Energy Ltd | E64: AG-HLIM01 | F64: TO connection | G64: DSF: Storage (for export) | H64: 2021-04-30 | I64: 2021-05-31 | J64: 30.04.21 - 31.05.21 (1 months) | K64: As per FFR framework agreement | L64: 2300 | M64: 2300 | N64: 24 | O64: 2300 | P64: 2300 | Q64: 24 | R64: 2300 | S64: 2300 | T64: 24 | U64: 34.5 | AC64: 1.2 | AD64: 3 | AE64: 3 | AF64: 1.2 | AG64: 3 | AH64: 1.2 | AI64: 3 | AL64: G | AM64: Cannot be accepted with H or I | AP64: H for 30 minutes only
A65: 136.059 | B65: Accepted | C65: NA | D65: Limejump Energy Ltd | E65: AG-HLIM01 | F65: TO connection | G65: DSF: Storage (for export) | H65: 2021-04-30 | I65: 2021-05-31 | J65: 30.04.21 - 31.05.21 (1 months) | K65: As per FFR framework agreement | L65: 2300 | M65: 700 | N65: 8 | O65: 2300 | P65: 700 | Q65: 8 | R65: 2300 | S65: 700 | T65: 8 | U65: 35.13 | AC65: 1.2 | AD65: 3 | AE65: 3 | AF65: 1.2 | AG65: 3 | AH65: 1.2 | AI65: 3 | AL65: H | AM65: Cannot be accepted with G | AP65: H for 30 minutes only
A66: =A65+0.001 -> 136.06 | B66: Accepted | C66: NA | D66: Limejump Energy Ltd | E66: AG-HLIM01 | F66: TO connection | G66: DSF: Storage (for export) | H66: 2021-05-01 | I66: 2021-05-31 | J66: 01.05.21 - 31.05.21 (1 months) | K66: As per FFR framework agreement | L66: 700 | M66: 1500 | N66: 8 | O66: 700 | P66: 1500 | Q66: 8 | R66: 700 | S66: 1500 | T66: 8 | U66: 36.39 | AC66: 1.2 | AD66: 3 | AE66: 3 | AF66: 1.2 | AG66: 3 | AH66: 1.2 | AI66: 3 | AL66: I | AM66: Cannot be accepted with G | AP66: H for 30 minutes only
A67: =A66+0.001 -> 136.061 | B67: Rejected | C67: 4 | D67: Limejump Energy Ltd | E67: AG-ELIM02 | F67: TO connection | G67: DSF: Storage (for export) | H67: 2021-04-30 | I67: 2021-05-31 | J67: 30.04.21 - 31.05.21 (1 months) | K67: As per FFR framework agreement | L67: 2300 | M67: 2300 | N67: 24 | O67: 2300 | P67: 2300 | Q67: 24 | R67: 2300 | S67: 2300 | T67: 24 | U67: 34.83 | AC67: 1.2 | AD67: 3 | AE67: 3 | AF67: 1.2 | AG67: 3 | AH67: 1.2 | AI67: 3 | AL67: J | AM67: Cannot be accepted with K or L | AP67: H for 30 minutes only
A68: =A65+0.003 -> 136.062 | B68: Accepted | C68: NA | D68: Limejump Energy Ltd | E68: AG-ELIM02 | F68: TO connection | G68: DSF: Storage (for export) | H68: 2021-04-30 | I68: 2021-05-31 | J68: =IFERROR(TEXT(H68,"DD.MM.YY")&" - "&TEXT(I68,"DD.MM.YY")&" ("&DATEDIF(H68,I68+1,"m")&" months)","Tender End Date is Before Start Date") -> 30.04.21 - 31.05.21 (1 months) | K68: As per FFR framework agreement | L68: 2300 | M68: 700 | N68: 8 | O68: 2300 | P68: 700 | Q68: 8 | R68: 2300 | S68: 700 | T68: 8 | U68: 35.76 | AC68: 1.2 | AD68: 3 | AE68: 3 | AF68: 1.2 | AG68: 3 | AH68: 1.2 | AI68: 3 | AL68: K | AM68: Cannot be accepted with J | AP68: H for 30 minutes only
A69: =A68+0.001 -> 136.063 | B69: Accepted | C69: NA | D69: Limejump Energy Ltd | E69: AG-ELIM02 | F69: TO connection | G69: DSF: Storage (for export) | H69: 2021-05-01 | I69: 2021-05-31 | J69: =IFERROR(TEXT(H69,"DD.MM.YY")&" - "&TEXT(I69,"DD.MM.YY")&" ("&DATEDIF(H69,I69+1,"m")&" months)","Tender End Date is Before Start Date") -> 01.05.21 - 31.05.21 (1 months) | K69: As per FFR framework agreement | L69: 700 | M69: 1500 | N69: 8 | O69: 700 | P69: 1500 | Q69: 8 | R69: 700 | S69: 1500 | T69: 8 | U69: 36.69 | AC69: 1.2 | AD69: 3 | AE69: 3 | AF69: 1.2 | AG69: 3 | AH69: 1.2 | AI69: 3 | AL69: L | AM69: Cannot be accepted with J | AP69: H for 30 minutes only
A70: =A69+0.001 -> 136.064 | B70: Rejected | C70: 4 | D70: Limejump Ltd | E70: LJDYN-2 | F70: DNO connection | G70: DSF: Storage (for export) | H70: 2021-04-30 | I70: 2021-05-31 | J70: =IFERROR(TEXT(H70,"DD.MM.YY")&" - "&TEXT(I70,"DD.MM.YY")&" ("&DATEDIF(H70,I70+1,"m")&" months)","Tender End Date is Before Start Date") -> 30.04.21 - 31.05.21 (1 months) | K70: As per FFR framework agreement | L70: 2300 | M70: 2300 | N70: 24 | O70: 2300 | P70: 2300 | Q70: 24 | R70: 2300 | S70: 2300 | T70: 24 | U70: 72 | AC70: 2.4 | AD70: 6 | AE70: 6 | AF70: 2.4 | AG70: 6 | AH70: 2.4 | AI70: 6 | AL70: M | AM70: Cannot be accepted with N or O | AP70: H for 30 minutes only
A71: =A70+0.001 -> 136.065 | B71: Accepted | C71: NA | D71: Limejump Ltd | E71: LJDYN-2 | F71: DNO connection | G71: DSF: Storage (for export) | H71: 2021-04-30 | I71: 2021-05-31 | J71: 30.04.21 - 31.05.21 (1 months) | K71: As per FFR framework agreement | L71: 2300 | M71: 700 | N71: 8 | O71: 2300 | P71: 700 | Q71: 8 | R71: 2300 | S71: 700 | T71: 8 | U71: 74.4 | AC71: 2.4 | AD71: 6 | AE71: 6 | AF71: 2.4 | AG71: 6 | AH71: 2.4 | AI71: 6 | AL71: N | AM71: Cannot be accepted with M | AP71: H for 30 minutes only
A72: =A71+0.001 -> 136.066 | B72: Accepted | C72: NA | D72: Limejump Ltd | E72: LJDYN-2 | F72: DNO connection | G72: DSF: Storage (for export) | H72: 2021-05-01 | I72: 2021-05-31 | J72: =IFERROR(TEXT(H72,"DD.MM.YY")&" - "&TEXT(I72,"DD.MM.YY")&" ("&DATEDIF(H72,I72+1,"m")&" months)","Tender End Date is Before Start Date") -> 01.05.21 - 31.05.21 (1 months) | K72: As per FFR framework agreement | L72: 700 | M72: 1500 | N72: 8 | O72: 700 | P72: 1500 | Q72: 8 | R72: 700 | S72: 1500 | T72: 8 | U72: 75 | AC72: 2.4 | AD72: 6 | AE72: 6 | AF72: 2.4 | AG72: 6 | AH72: 2.4 | AI72: 6 | AL72: O | AM72: Cannot be accepted with M | AP72: H for 30 minutes only
A73: 136.067 | B73: Accepted | C73: NA | D73: npower | E73: NPFRD-1 | F73: DNO connection | G73: Battery | H73: 2021-04-30 | I73: 2021-05-31 | J73: 30.04.21 - 31.05.21 (1 months) | L73: 2300 | M73: 700 | N73: =IF(L73>M73, (2400-L73+M73)/100, IF(AND(L73="",M73="",L73=M73), "", IF(L73=M73,24,(M73-L73)/100))) -> 8 | O73: 2300 | P73: 700 | Q73: =IF(O73>P73, (2400-O73+P73)/100, IF(AND(O73="",P73="",O73=P73), "", IF(O73=P73,24,(P73-O73)/100))) -> 8 | R73: 2300 | S73: 700 | T73: =IF(R73>S73, (2400-R73+S73)/100, IF(AND(R73="",S73="",R73=S73), "", IF(R73=S73,24,(S73-R73)/100))) -> 8 | U73: 44 | AC73: 1.6 | AD73: 4 | AE73: 4 | AF73: 1.6 | AG73: 4 | AH73: 1.6 | AI73: 4 | AL73: A
A74: 136.068 | B74: Accepted | C74: NA | D74: npower | E74: NPFRD-1 | F74: DNO connection | G74: Battery | H74: 2021-05-01 | I74: 2021-05-31 | J74: 01.05.21 - 31.05.21 (1 months) | L74: 1500 | M74: 2300 | N74: =IF(L74>M74, (2400-L74+M74)/100, IF(AND(L74="",M74="",L74=M74), "", IF(L74=M74,24,(M74-L74)/100))) -> 8 | O74: 1500 | P74: 2300 | Q74: =IF(O74>P74, (2400-O74+P74)/100, IF(AND(O74="",P74="",O74=P74), "", IF(O74=P74,24,(P74-O74)/100))) -> 8 | R74: 1500 | S74: 2300 | T74: =IF(R74>S74, (2400-R74+S74)/100, IF(AND(R74="",S74="",R74=S74), "", IF(R74=S74,24,(S74-R74)/100))) -> 8 | U74: 44 | AC74: 1.6 | AD74: 4 | AE74: 4 | AF74: 1.6 | AG74: 4 | AH74: 1.6 | AI74: 4 | AL74: B
A75: 136.069 | B75: Accepted | C75: NA | D75: Open Energi Limited | E75: OPEN-1 | F75: DNO connection | G75: DSF: Load response | H75: 2021-04-30 | I75: 2021-05-31 | J75: 30.04.21 - 31.05.21 (1 months) | K75: As per FFR framework agreement | L75: 2300 | M75: 700 | N75: =IF(L75>M75, (2400-L75+M75)/100, IF(AND(L75="",M75="",L75=M75), "", IF(L75=M75,24,(M75-L75)/100))) -> 8 | O75: 2300 | P75: 700 | Q75: =IF(O75>P75, (2400-O75+P75)/100, IF(AND(O75="",P75="",O75=P75), "", IF(O75=P75,24,(P75-O75)/100))) -> 8 | R75: 2300 | S75: 700 | T75: =IF(R75>S75, (2400-R75+S75)/100, IF(AND(R75="",S75="",R75=S75), "", IF(R75=S75,24,(S75-R75)/100))) -> 8 | U75: 26.13 | AC75: 1.2 | AD75: 3 | AE75: 3 | AF75: 1.2 | AG75: 3 | AH75: 0.8 | AI75: 2 | AL75: A
A76: 136.07 | B76: Accepted | C76: NA | D76: Open Energi Limited | E76: OPEN-1 | F76: DNO connection | G76: DSF: Load response | H76: 2021-05-01 | I76: 2021-05-31 | J76: 01.05.21 - 31.05.21 (1 months) | K76: As per FFR framework agreement | L76: 700 | M76: 1500 | N76: =IF(L76>M76, (2400-L76+M76)/100, IF(AND(L76="",M76="",L76=M76), "", IF(L76=M76,24,(M76-L76)/100))) -> 8 | O76: 700 | P76: 1500 | Q76: =IF(O76>P76, (2400-O76+P76)/100, IF(AND(O76="",P76="",O76=P76), "", IF(O76=P76,24,(P76-O76)/100))) -> 8 | R76: 700 | S76: 1500 | T76: =IF(R76>S76, (2400-R76+S76)/100, IF(AND(R76="",S76="",R76=S76), "", IF(R76=S76,24,(S76-R76)/100))) -> 8 | U76: 27.38 | AC76: 1.2 | AD76: 3 | AE76: 3 | AF76: 1.2 | AG76: 3 | AH76: 0.8 | AI76: 2 | AL76: B
A77: 136.071 | B77: Accepted | C77: NA | D77: Open Energi Limited | E77: OPEN-1 | F77: DNO connection | G77: DSF: Load response | H77: 2021-05-01 | I77: 2021-05-31 | J77: 01.05.21 - 31.05.21 (1 months) | K77: As per FFR framework agreement | L77: 1500 | M77: 1900 | N77: 4 | U77: 21.9 | AC77: 0.8 | AD77: 2 | AE77: 2 | AF77: 0.8 | AG77: 2 | AH77: 0.8 | AI77: 2 | AL77: C
A78: 136.072 | B78: Accepted | C78: NA | D78: Open Energi Limited | E78: OPEN-1 | F78: DNO connection | G78: DSF: Load response | H78: 2021-05-01 | I78: 2021-05-31 | J78: 01.05.21 - 31.05.21 (1 months) | K78: As per FFR framework agreement | L78: 1900 | M78: 2300 | N78: 4 | O78: 1500 | P78: 2300 | Q78: 8 | R78: 1500 | S78: 2300 | T78: 8 | U78: 27.38 | AC78: 1.2 | AD78: 3 | AE78: 3 | AF78: 1.2 | AG78: 3 | AH78: 0.8 | AI78: 2 | AL78: C
A79: =A78+0.001 -> 136.073 | B79: Accepted | C79: NA | D79: Open Energi Limited | E79: OPEN-2 | F79: DNO connection | G79: DSF: Storage (onsite) | H79: 2021-04-30 | I79: 2021-05-31 | J79: 30.04.21 - 31.05.21 (1 months) | K79: As per FFR framework agreement | L79: 2300 | M79: 700 | N79: 8 | O79: 2300 | P79: 700 | Q79: 8 | R79: 2300 | S79: 700 | T79: 8 | U79: 34.35 | AC79: 1.2 | AD79: 3 | AE79: 3 | AF79: 1.2 | AG79: 3 | AH79: 1.2 | AI79: 3 | AL79: D
A80: 136.074 | B80: Accepted | C80: NA | D80: Open Energi Limited | E80: OPEN-2 | F80: DNO connection | G80: DSF: Storage (onsite) | H80: 2021-05-01 | I80: 2021-05-31 | J80: 01.05.21 - 31.05.21 (1 months) | K80: As per FFR framework agreement | L80: 700 | M80: 1500 | N80: 8 | O80: 700 | P80: 1500 | Q80: 8 | R80: 700 | S80: 1500 | T80: 8 | U80: 35.85 | AC80: 1.2 | AD80: 3 | AE80: 3 | AF80: 1.2 | AG80: 3 | AH80: 1.2 | AI80: 3 | AL80: E
A81: 136.075 | B81: Accepted | C81: NA | D81: Open Energi Limited | E81: OPEN-2 | F81: DNO connection | G81: DSF: Storage (onsite) | H81: 2021-05-01 | I81: 2021-05-31 | J81: 01.05.21 - 31.05.21 (1 months) | K81: As per FFR framework agreement | L81: 1500 | M81: 2300 | N81: 8 | O81: 1500 | P81: 2300 | Q81: 8 | R81: 1500 | S81: 2300 | T81: 8 | U81: 35.85 | AC81: 1.2 | AD81: 3 | AE81: 3 | AF81: 1.2 | AG81: 3 | AH81: 1.2 | AI81: 3 | AL81: F
A82: 136.076 | B82: Rejected | C82: 2 | D82: Peak Gen | E82: PGFFR-8 | F82: DNO connection | G82: DSF: Distributed generation (for export) | H82: 2021-05-01 | I82: 2021-05-31 | J82: 01.05.21 - 31.05.21 (1 months) | K82: As per FFR framework agreement | L82: 700 | M82: 1500 | N82: =IF(L82>M82, (2400-L82+M82)/100, IF(AND(L82="",M82="",L82=M82), "", IF(L82=M82,24,(M82-L82)/100))) -> 8 | O82: 700 | P82: 1500 | Q82: =IF(O82>P82, (2400-O82+P82)/100, IF(AND(O82="",P82="",O82=P82), "", IF(O82=P82,24,(P82-O82)/100))) -> 8 | R82: 700 | S82: 1500 | T82: =IF(R82>S82, (2400-R82+S82)/100, IF(AND(R82="",S82="",R82=S82), "", IF(R82=S82,24,(S82-R82)/100))) -> 8 | U82: 79.8 | AO82: 20
A83: 136.077 | B83: Accepted | C83: NA | D83: Peak Gen | E83: PGFFR-8 | F83: DNO connection | G83: DSF: Distributed generation (for export) | H83: 2021-05-01 | I83: 2021-05-31 | J83: 01.05.21 - 31.05.21 (1 months) | K83: As per FFR framework agreement | L83: 1500 | M83: 2300 | N83: =IF(L83>M83, (2400-L83+M83)/100, IF(AND(L83="",M83="",L83=M83), "", IF(L83=M83,24,(M83-L83)/100))) -> 8 | O83: 1500 | P83: 2300 | Q83: =IF(O83>P83, (2400-O83+P83)/100, IF(AND(O83="",P83="",O83=P83), "", IF(O83=P83,24,(P83-O83)/100))) -> 8 | R83: 1500 | S83: 2300 | T83: =IF(R83>S83, (2400-R83+S83)/100, IF(AND(R83="",S83="",R83=S83), "", IF(R83=S83,24,(S83-R83)/100))) -> 8 | U83: 53.82 | AO83: 18
A84: 136.078 | B84: Rejected | C84: 2 | D84: Peak Gen | E84: PGFFR-6 | F84: DNO connection | G84: DSF: Distributed generation (for export) | H84: 2021-05-01 | I84: 2021-05-31 | J84: 01.05.21 - 31.05.21 (1 months) | K84: As per FFR framework agreement | L84: 700 | M84: 1500 | N84: 8 | O84: 700 | P84: 1500 | Q84: 8 | R84: 700 | S84: 1500 | T84: 8 | U84: 79.8 | AO84: 20
A85: 136.079 | B85: Accepted | C85: NA | D85: Peak Gen | E85: PGFFR-6 | F85: DNO connection | G85: DSF: Distributed generation (for export) | H85: 2021-05-01 | I85: 2021-05-31 | J85: 01.05.21 - 31.05.21 (1 months) | K85: As per FFR framework agreement | L85: 1500 | M85: 2300 | N85: 8 | O85: 1500 | P85: 2300 | Q85: 8 | R85: 1500 | S85: 2300 | T85: 8 | U85: 53.82 | AO85: 18
A86: 136.08 | B86: Rejected | C86: 2 | D86: Peak Gen | E86: PGFFR-7 | F86: DNO connection | G86: DSF: Distributed generation (for export) | H86: 2021-05-01 | I86: 2021-05-31 | J86: 01.05.21 - 31.05.21 (1 months) | K86: As per FFR framework agreement | L86: 700 | M86: 1500 | N86: 8 | O86: 700 | P86: 1500 | Q86: 8 | R86: 700 | S86: 1500 | T86: 8 | U86: 79.8 | AO86: 20
A87: 136.081 | B87: Accepted | C87: NA | D87: Peak Gen | E87: PGFFR-7 | F87: DNO connection | G87: DSF: Distributed generation (for export) | H87: 2021-05-01 | I87: 2021-05-31 | J87: 01.05.21 - 31.05.21 (1 months) | K87: As per FFR framework agreement | L87: 1500 | M87: 2300 | N87: 8 | O87: 1500 | P87: 2300 | Q87: 8 | R87: 1500 | S87: 2300 | T87: 8 | U87: 53.82 | AO87: 18
A88: 136.082 | B88: Accepted | C88: NA | D88: Peak Gen | E88: PGFFR-9 | F88: DNO connection | G88: DSF: Distributed generation (for export) | H88: 2021-05-01 | I88: 2021-05-31 | J88: 01.05.21 - 31.05.21 (1 months) | K88: As per FFR framework agreement | L88: 700 | M88: 1500 | N88: 8 | O88: 700 | P88: 1500 | Q88: 8 | R88: 700 | S88: 1500 | T88: 8 | U88: 71.82 | AO88: 18
A89: =A88+0.001 -> 136.083 | B89: Rejected | C89: 2 | D89: Peak Gen | E89: PGFFR-9 | F89: DNO connection | G89: DSF: Distributed generation (for export) | H89: 2021-05-01 | I89: 2021-05-31 | J89: 01.05.21 - 31.05.21 (1 months) | K89: As per FFR framework agreement | L89: 1500 | M89: 2300 | N89: 8 | O89: 1500 | P89: 2300 | Q89: 8 | R89: 1500 | S89: 2300 | T89: 8 | U89: 47.84 | AO89: 16
A90: 136.084 | B90: Accepted | C90: NA | D90: Peak Gen | E90: PGFFR-5 | F90: DNO connection | G90: DSF: Distributed generation (for export) | H90: 2021-05-01 | I90: 2021-05-31 | J90: 01.05.21 - 31.05.21 (1 months) | K90: As per FFR framework agreement | L90: 700 | M90: 1500 | N90: 8 | O90: 700 | P90: 1500 | Q90: 8 | R90: 700 | S90: 1500 | T90: 8 | U90: 71.82 | AO90: 18
A91: 136.085 | B91: Rejected | C91: 2 | D91: Peak Gen | E91: PGFFR-5 | F91: DNO connection | G91: DSF: Distributed generation (for export) | H91: 2021-05-01 | I91: 2021-05-31 | J91: 01.05.21 - 31.05.21 (1 months) | K91: As per FFR framework agreement | L91: 1500 | M91: 2300 | N91: 8 | O91: 1500 | P91: 2300 | Q91: 8 | R91: 1500 | S91: 2300 | T91: 8 | U91: 47.84 | AO91: 16
A92: 136.086 | B92: Accepted | C92: NA | D92: Peak Gen | E92: PGFFR-4 | F92: DNO connection | G92: DSF: Distributed generation (for export) | H92: 2021-05-01 | I92: 2021-05-31 | J92: 01.05.21 - 31.05.21 (1 months) | K92: As per FFR framework agreement | L92: 700 | M92: 1500 | N92: 8 | O92: 700 | P92: 1500 | Q92: 8 | R92: 700 | S92: 1500 | T92: 8 | U92: 71.82 | AO92: 18
A93: =A92+0.001 -> 136.087 | B93: Accepted | C93: NA | D93: Social Energy Limited | E93: SOC1-FFR | F93: DNO connection | G93: DSF: Storage (onsite) | H93: 2021-04-30 | I93: 2021-05-31 | J93: 30.04.21 - 31.05.21 (1 months) | K93: As per FFR framework agreement | L93: 2300 | M93: 700 | N93: =IF(L93>M93, (2400-L93+M93)/100, IF(AND(L93="",M93="",L93=M93), "", IF(L93=M93,24,(M93-L93)/100))) -> 8 | O93: 2300 | P93: 700 | Q93: =IF(O93>P93, (2400-O93+P93)/100, IF(AND(O93="",P93="",O93=P93), "", IF(O93=P93,24,(P93-O93)/100))) -> 8 | R93: 2300 | S93: 700 | T93: =IF(R93>S93, (2400-R93+S93)/100, IF(AND(R93="",S93="",R93=S93), "", IF(R93=S93,24,(S93-R93)/100))) -> 8 | U93: 10.75 | AC93: 0.4 | AD93: 1 | AE93: 1 | AF93: 0.4 | AG93: 1 | AH93: 0.4 | AI93: 1 | AP93: H for only 30min
A94: 136.088 | B94: Accepted | C94: NA | D94: Social Energy Limited | E94: SOC1-FFR | F94: DNO connection | G94: DSF: Storage (onsite) | H94: 2021-05-01 | I94: 2021-05-31 | J94: 01.05.21 - 31.05.21 (1 months) | K94: As per FFR framework agreement | L94: 700 | M94: 1100 | N94: =IF(L94>M94, (2400-L94+M94)/100, IF(AND(L94="",M94="",L94=M94), "", IF(L94=M94,24,(M94-L94)/100))) -> 4 | O94: 700 | P94: 1100 | Q94: =IF(O94>P94, (2400-O94+P94)/100, IF(AND(O94="",P94="",O94=P94), "", IF(O94=P94,24,(P94-O94)/100))) -> 4 | R94: 700 | S94: 1100 | T94: =IF(R94>S94, (2400-R94+S94)/100, IF(AND(R94="",S94="",R94=S94), "", IF(R94=S94,24,(S94-R94)/100))) -> 4 | U94: 10.47 | AC94: 0.4 | AD94: 1 | AE94: 1 | AF94: 0.4 | AG94: 1 | AH94: 0.4 | AI94: 1 | AP94: H for only 30min
A95: 136.089 | B95: Accepted | C95: NA | D95: Social Energy Limited | E95: SOC1-FFR | F95: DNO connection | G95: DSF: Storage (onsite) | H95: 2021-05-01 | I95: 2021-05-31 | J95: 01.05.21 - 31.05.21 (1 months) | K95: As per FFR framework agreement | L95: 1100 | M95: 1500 | N95: 4 | O95: 1100 | P95: 1500 | Q95: 4 | R95: 1100 | S95: 1500 | T95: 4 | U95: 3 | AC95: 0 | AD95: 0 | AE95: 0 | AF95: 0 | AG95: 0 | AH95: 0.4 | AI95: 1 | AP95: H for only 30min
A96: 136.09 | B96: Accepted | C96: NA | D96: Social Energy Limited | E96: SOC2-FFR | F96: DNO connection | G96: DSF: Storage (onsite) | H96: 2021-04-30 | I96: 2021-05-31 | J96: 30.04.21 - 31.05.21 (1 months) | K96: As per FFR framework agreement | L96: 2300 | M96: 700 | N96: 8 | O96: 2300 | P96: 700 | Q96: 8 | R96: 2300 | S96: 700 | T96: 8 | U96: 10.47 | AC96: 0.4 | AD96: 1 | AE96: 1 | AF96: 0.4 | AG96: 1 | AH96: 0.4 | AI96: 1 | AP96: H for only 30min
A97: 136.091 | B97: Accepted | C97: NA | D97: Social Energy Limited | E97: SOC2-FFR | F97: DNO connection | G97: DSF: Storage (onsite) | H97: 2021-05-01 | I97: 2021-05-31 | J97: 01.05.21 - 31.05.21 (1 months) | K97: As per FFR framework agreement | L97: 700 | M97: 1100 | N97: 4 | O97: 700 | P97: 1100 | Q97: 4 | R97: 700 | S97: 1100 | T97: 4 | U97: 10.65 | AC97: 0.4 | AD97: 1 | AE97: 1 | AF97: 0.4 | AG97: 1 | AH97: 0.4 | AI97: 1 | AP97: H for only 30min
A98: 136.092 | B98: Accepted | C98: NA | D98: Social Energy Limited | E98: SOC2-FFR | F98: DNO connection | G98: DSF: Storage (onsite) | H98: 2021-05-01 | I98: 2021-05-31 | J98: 01.05.21 - 31.05.21 (1 months) | K98: As per FFR framework agreement | L98: 1100 | M98: 1500 | N98: 4 | O98: 1100 | P98: 1500 | Q98: 4 | R98: 1100 | S98: 1500 | T98: 4 | U98: 3 | AC98: 0 | AD98: 0 | AE98: 0 | AF98: 0 | AG98: 0 | AH98: 0.4 | AI98: 1 | AP98: H for only 30min
A99: 136.093 | B99: Accepted | C99: NA | D99: Social Energy Limited | E99: SOC3-FFR | F99: DNO connection | G99: DSF: Storage (onsite) | H99: 2021-04-30 | I99: 2021-05-31 | J99: 30.04.21 - 31.05.21 (1 months) | K99: As per FFR framework agreement | L99: 2300 | M99: 700 | N99: 8 | O99: 2300 | P99: 700 | Q99: 8 | R99: 2300 | S99: 700 | T99: 8 | U99: 10.23 | AC99: 0.4 | AD99: 1 | AE99: 1 | AF99: 0.4 | AG99: 1 | AH99: 0.4 | AI99: 1 | AP99: H for only 30min
A100: 136.094 | B100: Accepted | C100: NA | D100: Social Energy Limited | E100: SOC3-FFR | F100: DNO connection | G100: DSF: Storage (onsite) | H100: 2021-05-01 | I100: 2021-05-31 | J100: 01.05.21 - 31.05.21 (1 months) | K100: As per FFR framework agreement | L100: 700 | M100: 1100 | N100: 4 | O100: 700 | P100: 1100 | Q100: 4 | R100: 700 | S100: 1100 | T100: 4 | U100: 10.83 | AC100: 0.4 | AD100: 1 | AE100: 1 | AF100: 0.4 | AG100: 1 | AH100: 0.4 | AI100: 1 | AP100: H for only 30min
A101: 136.095 | B101: Accepted | C101: NA | D101: Social Energy Limited | E101: SOC3-FFR | F101: DNO connection | G101: DSF: Storage (onsite) | H101: 2021-05-01 | I101: 2021-05-31 | J101: 01.05.21 - 31.05.21 (1 months) | K101: As per FFR framework agreement | L101: 1100 | M101: 1500 | N101: 4 | O101: 1100 | P101: 1500 | Q101: 4 | R101: 1100 | S101: 1500 | T101: 4 | U101: 3 | AC101: 0 | AD101: 0 | AE101: 0 | AF101: 0 | AG101: 0 | AH101: 0.4 | AI101: 1 | AP101: H for only 30min
A102: 136.096 | B102: Accepted | C102: NA | D102: Social Energy Limited | E102: SOC4-FFR | F102: DNO connection | G102: DSF: Storage (onsite) | H102: 2021-04-30 | I102: 2021-05-31 | J102: 30.04.21 - 31.05.21 (1 months) | K102: As per FFR framework agreement | L102: 2300 | M102: 700 | N102: 8 | O102: 2300 | P102: 700 | Q102: 8 | R102: 2300 | S102: 700 | T102: 8 | U102: 9.96 | AC102: 0.4 | AD102: 1 | AE102: 1 | AF102: 0.4 | AG102: 1 | AH102: 0.4 | AI102: 1 | AP102: H for only 30min
A103: 136.097 | B103: Accepted | C103: NA | D103: Social Energy Limited | E103: SOC4-FFR | F103: DNO connection | G103: DSF: Storage (onsite) | H103: 2021-05-01 | I103: 2021-05-31 | J103: 01.05.21 - 31.05.21 (1 months) | K103: As per FFR framework agreement | L103: 700 | M103: 1100 | N103: 4 | O103: 700 | P103: 1100 | Q103: 4 | R103: 700 | S103: 1100 | T103: 4 | U103: 11.06 | AC103: 0.4 | AD103: 1 | AE103: 1 | AF103: 0.4 | AG103: 1 | AH103: 0.4 | AI103: 1 | AP103: H for only 30min
A104: 136.098 | B104: Accepted | C104: NA | D104: Social Energy Limited | E104: SOC4-FFR | F104: DNO connection | G104: DSF: Storage (onsite) | H104: 2021-05-01 | I104: 2021-05-31 | J104: 01.05.21 - 31.05.21 (1 months) | K104: As per FFR framework agreement | L104: 1100 | M104: 1500 | N104: 4 | O104: 1100 | P104: 1500 | Q104: 4 | R104: 1100 | S104: 1500 | T104: 4 | U104: 3 | AC104: 0 | AD104: 0 | AE104: 0 | AF104: 0 | AG104: 0 | AH104: 0.4 | AI104: 1 | AP104: H for only 30min
A105: 136.099 | B105: Accepted | C105: NA | D105: Social Energy Limited | E105: SOC5-FFR | F105: DNO connection | G105: DSF: Storage (onsite) | H105: 2021-04-30 | I105: 2021-05-31 | J105: 30.04.21 - 31.05.21 (1 months) | K105: As per FFR framework agreement | L105: 2300 | M105: 700 | N105: 8 | O105: 2300 | P105: 700 | Q105: 8 | R105: 2300 | S105: 700 | T105: 8 | U105: 9.71 | AC105: 0.4 | AD105: 1 | AE105: 1 | AF105: 0.4 | AG105: 1 | AH105: 0.4 | AI105: 1 | AP105: H for only 30min
A106: 136.1 | B106: Accepted | C106: NA | D106: Social Energy Limited | E106: SOC5-FFR | F106: DNO connection | G106: DSF: Storage (onsite) | H106: 2021-05-01 | I106: 2021-05-31 | J106: 01.05.21 - 31.05.21 (1 months) | K106: As per FFR framework agreement | L106: 700 | M106: 1100 | N106: 4 | O106: 700 | P106: 1100 | Q106: 4 | R106: 700 | S106: 1100 | T106: 4 | U106: 11.28 | AC106: 0.4 | AD106: 1 | AE106: 1 | AF106: 0.4 | AG106: 1 | AH106: 0.4 | AI106: 1 | AP106: H for only 30min
A107: 136.101 | B107: Accepted | C107: NA | D107: Social Energy Limited | E107: SOC5-FFR | F107: DNO connection | G107: DSF: Storage (onsite) | H107: 2021-05-01 | I107: 2021-05-31 | J107: 01.05.21 - 31.05.21 (1 months) | K107: As per FFR framework agreement | L107: 1100 | M107: 1500 | N107: 4 | O107: 1100 | P107: 1500 | Q107: 4 | R107: 1100 | S107: 1500 | T107: 4 | U107: 3 | AC107: 0 | AD107: 0 | AE107: 0 | AF107: 0 | AG107: 0 | AH107: 0.4 | AI107: 1 | AP107: H for only 30min
A108: 136.102 | B108: Accepted | C108: NA | D108: Social Energy Limited | E108: SOC6-FFR | F108: DNO connection | G108: DSF: Storage (onsite) | H108: 2021-04-30 | I108: 2021-05-31 | J108: 30.04.21 - 31.05.21 (1 months) | K108: As per FFR framework agreement | L108: 2300 | M108: 700 | N108: 8 | O108: 2300 | P108: 700 | Q108: 8 | R108: 2300 | S108: 700 | T108: 8 | U108: 9.52 | AC108: 0.4 | AD108: 1 | AE108: 1 | AF108: 0.4 | AG108: 1 | AH108: 0.4 | AI108: 1 | AP108: H for only 30min
A109: 136.103 | B109: Accepted | C109: NA | D109: Social Energy Limited | E109: SOC6-FFR | F109: DNO connection | G109: DSF: Storage (onsite) | H109: 2021-05-01 | I109: 2021-05-31 | J109: 01.05.21 - 31.05.21 (1 months) | K109: As per FFR framework agreement | L109: 700 | M109: 1100 | N109: 4 | O109: 700 | P109: 1100 | Q109: 4 | R109: 700 | S109: 1100 | T109: 4 | U109: 11.45 | AC109: 0.4 | AD109: 1 | AE109: 1 | AF109: 0.4 | AG109: 1 | AH109: 0.4 | AI109: 1 | AP109: H for only 30min
A110: 136.104 | B110: Accepted | C110: NA | D110: Social Energy Limited | E110: SOC6-FFR | F110: DNO connection | G110: DSF: Storage (onsite) | H110: 2021-05-01 | I110: 2021-05-31 | J110: 01.05.21 - 31.05.21 (1 months) | K110: As per FFR framework agreement | L110: 1100 | M110: 1500 | N110: 4 | O110: 1100 | P110: 1500 | Q110: 4 | R110: 1100 | S110: 1500 | T110: 4 | U110: 3 | AC110: 0 | AD110: 0 | AE110: 0 | AF110: 0 | AG110: 0 | AH110: 0.4 | AI110: 1 | AP110: H for only 30min
A111: 136.105 | B111: Accepted | C111: NA | D111: Social Energy Limited | E111: SOC7-FFR | F111: DNO connection | G111: DSF: Storage (onsite) | H111: 2021-04-30 | I111: 2021-05-31 | J111: 30.04.21 - 31.05.21 (1 months) | K111: As per FFR framework agreement | L111: 2300 | M111: 700 | N111: 8 | O111: 2300 | P111: 700 | Q111: 8 | R111: 2300 | S111: 700 | T111: 8 | U111: 9.35 | AC111: 0.4 | AD111: 1 | AE111: 1 | AF111: 0.4 | AG111: 1 | AH111: 0.4 | AI111: 1 | AP111: H for only 30min
A112: 136.106 | B112: Accepted | C112: NA | D112: Social Energy Limited | E112: SOC7-FFR | F112: DNO connection | G112: DSF: Storage (onsite) | H112: 2021-05-01 | I112: 2021-05-31 | J112: 01.05.21 - 31.05.21 (1 months) | K112: As per FFR framework agreement | L112: 700 | M112: 1100 | N112: 4 | O112: 700 | P112: 1100 | Q112: 4 | R112: 700 | S112: 1100 | T112: 4 | U112: 11.63 | AC112: 0.4 | AD112: 1 | AE112: 1 | AF112: 0.4 | AG112: 1 | AH112: 0.4 | AI112: 1 | AP112: H for only 30min
A113: 136.107 | B113: Accepted | C113: NA | D113: Social Energy Limited | E113: SOC7-FFR | F113: DNO connection | G113: DSF: Storage (onsite) | H113: 2021-05-01 | I113: 2021-05-31 | J113: 01.05.21 - 31.05.21 (1 months) | K113: As per FFR framework agreement | L113: 1100 | M113: 1500 | N113: 4 | O113: 1100 | P113: 1500 | Q113: 4 | R113: 1100 | S113: 1500 | T113: 4 | U113: 3 | AC113: 0 | AD113: 0 | AE113: 0 | AF113: 0 | AG113: 0 | AH113: 0.4 | AI113: 1 | AP113: H for only 30min
A114: 136.108 | B114: Accepted | C114: NA | D114: Social Energy Limited | E114: SOC8-FFR | F114: DNO connection | G114: DSF: Storage (onsite) | H114: 2021-04-30 | I114: 2021-05-31 | J114: 30.04.21 - 31.05.21 (1 months) | K114: As per FFR framework agreement | L114: 2300 | M114: 700 | N114: 8 | O114: 2300 | P114: 700 | Q114: 8 | R114: 2300 | S114: 700 | T114: 8 | U114: 9.14 | AC114: 0.4 | AD114: 1 | AE114: 1 | AF114: 0.4 | AG114: 1 | AH114: 0.4 | AI114: 1 | AP114: H for only 30min
A115: 136.109 | B115: Accepted | C115: NA | D115: Social Energy Limited | E115: SOC8-FFR | F115: DNO connection | G115: DSF: Storage (onsite) | H115: 2021-05-01 | I115: 2021-05-31 | J115: 01.05.21 - 31.05.21 (1 months) | K115: As per FFR framework agreement | L115: 700 | M115: 1100 | N115: 4 | O115: 700 | P115: 1100 | Q115: 4 | R115: 700 | S115: 1100 | T115: 4 | U115: 11.94 | AC115: 0.4 | AD115: 1 | AE115: 1 | AF115: 0.4 | AG115: 1 | AH115: 0.4 | AI115: 1 | AP115: H for only 30min
A116: 136.11 | B116: Accepted | C116: NA | D116: Social Energy Limited | E116: SOC8-FFR | F116: DNO connection | G116: DSF: Storage (onsite) | H116: 2021-05-01 | I116: 2021-05-31 | J116: 01.05.21 - 31.05.21 (1 months) | K116: As per FFR framework agreement | L116: 1100 | M116: 1500 | N116: 4 | O116: 1100 | P116: 1500 | Q116: 4 | R116: 1100 | S116: 1500 | T116: 4 | U116: 3 | AC116: 0 | AD116: 0 | AE116: 0 | AF116: 0 | AG116: 0 | AH116: 0.4 | AI116: 1 | AP116: H for only 30min
A117: 136.111 | B117: Accepted | C117: NA | D117: Social Energy Limited | E117: SOC9-FFR | F117: DNO connection | G117: DSF: Storage (onsite) | H117: 2021-04-30 | I117: 2021-05-31 | J117: 30.04.21 - 31.05.21 (1 months) | K117: As per FFR framework agreement | L117: 2300 | M117: 700 | N117: 8 | O117: 2300 | P117: 700 | Q117: 8 | R117: 2300 | S117: 700 | T117: 8 | U117: 8.91 | AC117: 0.4 | AD117: 1 | AE117: 1 | AF117: 0.4 | AG117: 1 | AH117: 0.4 | AI117: 1 | AP117: H for only 30min
A118: 136.112 | B118: Accepted | C118: NA | D118: Social Energy Limited | E118: SOC9-FFR | F118: DNO connection | G118: DSF: Storage (onsite) | H118: 2021-05-01 | I118: 2021-05-31 | J118: 01.05.21 - 31.05.21 (1 months) | K118: As per FFR framework agreement | L118: 700 | M118: 1100 | N118: 4 | O118: 700 | P118: 1100 | Q118: 4 | R118: 700 | S118: 1100 | T118: 4 | U118: 12.35 | AC118: 0.4 | AD118: 1 | AE118: 1 | AF118: 0.4 | AG118: 1 | AH118: 0.4 | AI118: 1 | AP118: H for only 30min
A119: 136.113 | B119: Accepted | C119: NA | D119: Social Energy Limited | E119: SOC9-FFR | F119: DNO connection | G119: DSF: Storage (onsite) | H119: 2021-05-01 | I119: 2021-05-31 | J119: 01.05.21 - 31.05.21 (1 months) | K119: As per FFR framework agreement | L119: 1100 | M119: 1500 | N119: 4 | O119: 1100 | P119: 1500 | Q119: 4 | R119: 1100 | S119: 1500 | T119: 4 | U119: 3 | AC119: 0 | AD119: 0 | AE119: 0 | AF119: 0 | AG119: 0 | AH119: 0.4 | AI119: 1 | AP119: H for only 30min
A120: 136.114 | B120: Rejected | C120: Withdrawn | D120: Pelham Storage Limited | E120: PLHM-1 | F120: DNO connection | G120: DSF: Storage (for export) | H120: 2021-04-30 | I120: 2021-05-31 | J120: =IFERROR(TEXT(H120,"DD.MM.YY")&" - "&TEXT(I120,"DD.MM.YY")&" ("&DATEDIF(H120,I120+1,"m")&" months)","Tender End Date is Before Start Date") -> 30.04.21 - 31.05.21 (1 months) | K120: As per FFR framework agreement | L120: 2300 | M120: 700 | N120: =IF(L120>M120, (2400-L120+M120)/100, IF(AND(L120="",M120="",L120=M120), "", IF(L120=M120,24,(M120-L120)/100))) -> 8 | O120: 2300 | P120: 700 | Q120: =IF(O120>P120, (2400-O120+P120)/100, IF(AND(O120="",P120="",O120=P120), "", IF(O120=P120,24,(P120-O120)/100))) -> 8 | R120: 2300 | S120: 700 | T120: =IF(R120>S120, (2400-R120+S120)/100, IF(AND(R120="",S120="",R120=S120), "", IF(R120=S120,24,(S120-R120)/100))) -> 8 | U120: 456 | AC120: 19.2 | AD120: 48 | AE120: 48 | AF120: 19.2 | AG120: 48 | AH120: 19.2 | AI120: 48
A121: 136.115 | B121: Rejected | C121: Withdrawn | D121: Pelham Storage Limited | E121: PLHM-1 | F121: DNO connection | G121: DSF: Storage (for export) | H121: 2021-05-01 | I121: 2021-05-31 | J121: =IFERROR(TEXT(H121,"DD.MM.YY")&" - "&TEXT(I121,"DD.MM.YY")&" ("&DATEDIF(H121,I121+1,"m")&" months)","Tender End Date is Before Start Date") -> 01.05.21 - 31.05.21 (1 months) | K121: As per FFR framework agreement | L121: 700 | M121: 1500 | N121: =IF(L121>M121, (2400-L121+M121)/100, IF(AND(L121="",M121="",L121=M121), "", IF(L121=M121,24,(M121-L121)/100))) -> 8 | O121: 700 | P121: 1500 | Q121: =IF(O121>P121, (2400-O121+P121)/100, IF(AND(O121="",P121="",O121=P121), "", IF(O121=P121,24,(P121-O121)/100))) -> 8 | R121: 700 | S121: 1500 | T121: =IF(R121>S121, (2400-R121+S121)/100, IF(AND(R121="",S121="",R121=S121), "", IF(R121=S121,24,(S121-R121)/100))) -> 8 | U121: 528 | AC121: 19.2 | AD121: 48 | AE121: 48 | AF121: 19.2 | AG121: 48 | AH121: 19.2 | AI121: 48
A122: 136.116 | B122: Rejected | C122: Withdrawn | D122: Pelham Storage Limited | E122: PLHM-1 | F122: DNO connection | G122: DSF: Storage (for export) | H122: 2021-05-01 | I122: 2021-05-31 | J122: 01.05.21 - 31.05.21 (1 months) | K122: As per FFR framework agreement | L122: 1500 | M122: 2300 | N122: 8 | O122: 1500 | P122: 2300 | Q122: 8 | R122: 1500 | S122: 2300 | T122: 8 | U122: 528 | AC122: 19.2 | AD122: 48 | AE122: 48 | AF122: 19.2 | AG122: 48 | AH122: 19.2 | AI122: 48
A123: 136.117 | B123: Accepted | C123: NA | D123: Statkraft Markets GmbH | E123: SKFT-1 | F123: DNO Connection | G123: DSF: Storage (for export) | H123: 2021-04-30 | I123: 2021-05-31 | J123: 30.04.21 - 31.05.21 (1 months) | K123: As per FFR framework agreement | L123: 2300 | M123: 700 | N123: 8 | O123: 2300 | P123: 700 | Q123: 8 | R123: 2300 | S123: 700 | T123: 8 | U123: 56.22 | AC123: 2.4 | AD123: 6 | AE123: 6 | AF123: 2.4 | AG123: 6 | AH123: 2.4 | AI123: 6
A124: 136.118 | B124: Accepted | C124: NA | D124: Statkraft Markets GmbH | E124: SKFT-1 | F124: DNO Connection | G124: DSF: Storage (for export) | H124: 2021-05-01 | I124: 2021-05-31 | J124: 01.05.21 - 31.05.21 (1 months) | K124: As per FFR framework agreement | L124: 700 | M124: 1500 | N124: =IF(L124>M124, (2400-L124+M124)/100, IF(AND(L124="",M124="",L124=M124), "", IF(L124=M124,24,(M124-L124)/100))) -> 8 | O124: 700 | P124: 1500 | Q124: =IF(O124>P124, (2400-O124+P124)/100, IF(AND(O124="",P124="",O124=P124), "", IF(O124=P124,24,(P124-O124)/100))) -> 8 | R124: 700 | S124: 1500 | T124: =IF(R124>S124, (2400-R124+S124)/100, IF(AND(R124="",S124="",R124=S124), "", IF(R124=S124,24,(S124-R124)/100))) -> 8 | U124: 48.85 | AC124: 2 | AD124: 5 | AE124: 5 | AF124: 2 | AG124: 5 | AH124: 2 | AI124: 5
A125: 136.119 | B125: Accepted | C125: NA | D125: Statkraft Markets GmbH | E125: SKFT-1 | F125: DNO Connection | G125: DSF: Storage (for export) | H125: 2021-05-01 | I125: 2021-05-31 | J125: 01.05.21 - 31.05.21 (1 months) | K125: As per FFR framework agreement | L125: 1500 | M125: 2300 | N125: 8 | O125: 1500 | P125: 2300 | Q125: 8 | R125: 1500 | S125: 2300 | T125: 8 | U125: 49.6 | AC125: 2 | AD125: 5 | AE125: 5 | AF125: 2 | AG125: 5 | AH125: 2 | AI125: 5
A126: 136.12 | B126: Rejected | C126: 2 | D126: UK Power Reserve Ltd | E126: AFFR1 | F126: DNO connection | G126: DSF: Storage (for export) | H126: 2021-04-30 | I126: 2021-05-31 | J126: 30.04.21 - 31.05.21 (1 months) | K126: As per FFR framework agreement | L126: 2300 | M126: 2300 | N126: =IF(L126>M126, (2400-L126+M126)/100, IF(AND(L126="",M126="",L126=M126), "", IF(L126=M126,24,(M126-L126)/100))) -> 24 | O126: 2300 | P126: 2300 | Q126: =IF(O126>P126, (2400-O126+P126)/100, IF(AND(O126="",P126="",O126=P126), "", IF(O126=P126,24,(P126-O126)/100))) -> 24 | R126: 2300 | S126: 2300 | T126: =IF(R126>S126, (2400-R126+S126)/100, IF(AND(R126="",S126="",R126=S126), "", IF(R126=S126,24,(S126-R126)/100))) -> 24 | U126: 450 | AC126: 8 | AD126: 20 | AE126: 20 | AF126: 8 | AG126: 20 | AH126: 8 | AI126: 20
A127: 136.121 | B127: Rejected | C127: 2 | D127: UK Power Reserve Ltd | E127: AFFR2 | F127: DNO connection | G127: DSF: Storage (for export) | H127: 2021-04-30 | I127: 2021-05-31 | J127: 30.04.21 - 31.05.21 (1 months) | K127: As per FFR framework agreement | L127: 2300 | M127: 2300 | N127: =IF(L127>M127, (2400-L127+M127)/100, IF(AND(L127="",M127="",L127=M127), "", IF(L127=M127,24,(M127-L127)/100))) -> 24 | O127: 2300 | P127: 2300 | Q127: =IF(O127>P127, (2400-O127+P127)/100, IF(AND(O127="",P127="",O127=P127), "", IF(O127=P127,24,(P127-O127)/100))) -> 24 | R127: 2300 | S127: 2300 | T127: =IF(R127>S127, (2400-R127+S127)/100, IF(AND(R127="",S127="",R127=S127), "", IF(R127=S127,24,(S127-R127)/100))) -> 24 | U127: 440 | AC127: 8 | AD127: 20 | AE127: 20 | AF127: 8 | AG127: 20 | AH127: 8 | AI127: 20
A128: 136.122 | B128: Rejected | C128: 2 | D128: UK Power Reserve Ltd | E128: AFFR3 | F128: DNO connection | G128: DSF: Storage (for export) | H128: 2021-04-30 | I128: 2021-05-31 | J128: 30.04.21 - 31.05.21 (1 months) | K128: As per FFR framework agreement | L128: 2300 | M128: 2300 | N128: 24 | O128: 2300 | P128: 2300 | Q128: 24 | R128: 2300 | S128: 2300 | T128: 24 | U128: 430 | AC128: 8 | AD128: 20 | AE128: 20 | AF128: 8 | AG128: 20 | AH128: 8 | AI128: 20
A129: 136.123 | B129: Accepted | C129: NA | D129: Upside Energy | E129: UPEN-2 | F129: DNO connection | G129: DSF: Storage (onsite) | H129: 2021-04-30 | I129: 2021-05-31 | J129: 30.04.21 - 31.05.21 (1 months) | K129: as per FFR framework agreement | L129: 2300 | M129: 1100 | N129: =IF(L129>M129, (2400-L129+M129)/100, IF(AND(L129="",M129="",L129=M129), "", IF(L129=M129,24,(M129-L129)/100))) -> 12 | O129: 2300 | P129: 1100 | Q129: =IF(O129>P129, (2400-O129+P129)/100, IF(AND(O129="",P129="",O129=P129), "", IF(O129=P129,24,(P129-O129)/100))) -> 12 | R129: 2300 | S129: 1100 | T129: =IF(R129>S129, (2400-R129+S129)/100, IF(AND(R129="",S129="",R129=S129), "", IF(R129=S129,24,(S129-R129)/100))) -> 12 | U129: 11.18 | AC129: 0.4 | AD129: 1 | AE129: 1 | AF129: 0.4 | AG129: 1 | AH129: 0.4 | AI129: 1
A130: 136.124 | B130: Accepted | C130: NA | D130: Upside Energy | E130: UPEN-1 | F130: DNO connection | G130: DSF: Storage (for export) | H130: 2021-04-30 | I130: 2021-05-31 | J130: 30.04.21 - 31.05.21 (1 months) | K130: as per FFR framework agreement | L130: 2300 | M130: 700 | N130: =IF(L130>M130, (2400-L130+M130)/100, IF(AND(L130="",M130="",L130=M130), "", IF(L130=M130,24,(M130-L130)/100))) -> 8 | O130: 2300 | P130: 700 | Q130: =IF(O130>P130, (2400-O130+P130)/100, IF(AND(O130="",P130="",O130=P130), "", IF(O130=P130,24,(P130-O130)/100))) -> 8 | R130: 2300 | S130: 700 | T130: =IF(R130>S130, (2400-R130+S130)/100, IF(AND(R130="",S130="",R130=S130), "", IF(R130=S130,24,(S130-R130)/100))) -> 8 | U130: 7.48 | AC130: 0.4 | AD130: 1 | AE130: 1 | AF130: 0.4 | AG130: 1 | AH130: 0 | AI130: 0
A131: 136.125 | B131: Accepted | C131: NA | D131: Upside Energy | E131: UPEN-3 | F131: DNO connection | G131: DSF: Storage (onsite) | H131: 2021-04-30 | I131: 2021-05-31 | J131: 30.04.21 - 31.05.21 (1 months) | K131: as per FFR framework agreement | L131: 2300 | M131: 700 | N131: 8 | O131: 2300 | P131: 700 | Q131: 8 | R131: 2300 | S131: 700 | T131: 8 | U131: 9 | AC131: 0.4 | AD131: 1 | AE131: 1 | AF131: 0.4 | AG131: 1 | AH131: 0.4 | AI131: 1
A132: 136.126 | B132: Rejected | C132: 2 | D132: BESS HoldCo 3 Ltd | E132: DBESSA-33 | F132: DNO connection | G132: Battery | H132: 2021-04-30 | I132: 2021-05-31 | J132: =IFERROR(TEXT(H132,"DD.MM.YY")&" - "&TEXT(I132,"DD.MM.YY")&" ("&DATEDIF(H132,I132+1,"m")&" months)","Tender End Date is Before Start Date") -> 30.04.21 - 31.05.21 (1 months) | K132: As per FFR framework agreement | L132: 2300 | M132: 2300 | N132: =IF(L132>M132, (2400-L132+M132)/100, IF(AND(L132="",M132="",L132=M132), "", IF(L132=M132,24,(M132-L132)/100))) -> 24 | O132: 2300 | P132: 2300 | Q132: =IF(O132>P132, (2400-O132+P132)/100, IF(AND(O132="",P132="",O132=P132), "", IF(O132=P132,24,(P132-O132)/100))) -> 24 | R132: 2300 | S132: 2300 | T132: =IF(R132>S132, (2400-R132+S132)/100, IF(AND(R132="",S132="",R132=S132), "", IF(R132=S132,24,(S132-R132)/100))) -> 24 | U132: 162 | AC132: 3.6 | AD132: 9 | AE132: 9 | AF132: 3.6 | AG132: 9 | AH132: 3.6 | AI132: 9 | AL132: A
A133: 136.127 | B133: Rejected | C133: 2 | D133: BESS HoldCo 3 Ltd | E133: DBESSC-33 | F133: DNO connection | G133: Battery | H133: 2021-04-30 | I133: 2021-05-31 | J133: 30.04.21 - 31.05.21 (1 months) | K133: As per FFR framework agreement | L133: 2300 | M133: 2300 | N133: =IF(L133>M133, (2400-L133+M133)/100, IF(AND(L133="",M133="",L133=M133), "", IF(L133=M133,24,(M133-L133)/100))) -> 24 | O133: 2300 | P133: 2300 | Q133: =IF(O133>P133, (2400-O133+P133)/100, IF(AND(O133="",P133="",O133=P133), "", IF(O133=P133,24,(P133-O133)/100))) -> 24 | R133: 2300 | S133: 2300 | T133: =IF(R133>S133, (2400-R133+S133)/100, IF(AND(R133="",S133="",R133=S133), "", IF(R133=S133,24,(S133-R133)/100))) -> 24 | U133: 180 | AC133: 4 | AD133: 10 | AE133: 10 | AF133: 4 | AG133: 10 | AH133: 4 | AI133: 10 | AL133: B
A134: 136.128 | B134: Rejected | C134: 2 | D134: BESS HoldCo 3 Ltd | E134: DBESSF-33 | F134: DNO connection | G134: Battery | H134: 2021-04-30 | I134: 2021-05-31 | J134: 30.04.21 - 31.05.21 (1 months) | K134: As per FFR framework agreement | L134: 2300 | M134: 2300 | N134: 24 | O134: 2300 | P134: 2300 | Q134: 24 | R134: 2300 | S134: 2300 | T134: 24 | U134: 180 | AC134: 4 | AD134: 10 | AE134: 10 | AF134: 4 | AG134: 10 | AH134: 4 | AI134: 10 | AL134: C
A135: 136.129 | B135: Rejected | C135: 2 | D135: BESS HoldCo 3 Ltd | E135: DBESSH-33 | F135: DNO connection | G135: Battery | H135: 2021-04-30 | I135: 2021-05-31 | J135: 30.04.21 - 31.05.21 (1 months) | K135: As per FFR framework agreement | L135: 2300 | M135: 2300 | N135: 24 | O135: 2300 | P135: 2300 | Q135: 24 | R135: 2300 | S135: 2300 | T135: 24 | U135: 180 | AC135: 4 | AD135: 10 | AE135: 10 | AF135: 4 | AG135: 10 | AH135: 4 | AI135: 10 | AL135: D
A136: 136.13 | B136: Rejected | C136: 2 | D136: BESS HoldCo 3 Ltd | E136: DBESSE-33 | F136: DNO connection | G136: Battery | H136: 2021-04-30 | I136: 2021-05-31 | J136: 30.04.21 - 31.05.21 (1 months) | K136: As per FFR framework agreement | L136: 2300 | M136: 2300 | N136: 24 | O136: 2300 | P136: 2300 | Q136: 24 | R136: 2300 | S136: 2300 | T136: 24 | U136: 180 | AC136: 4 | AD136: 10 | AE136: 10 | AF136: 4 | AG136: 10 | AH136: 4 | AI136: 10 | AL136: E
A137: 136.131 | B137: Rejected | C137: 2 | D137: BESS HoldCo 3 Ltd | E137: DBESSG-33 | F137: DNO connection | G137: Battery | H137: 2021-04-30 | I137: 2021-05-31 | J137: 30.04.21 - 31.05.21 (1 months) | K137: As per FFR framework agreement | L137: 2300 | M137: 2300 | N137: 24 | O137: 2300 | P137: 2300 | Q137: 24 | R137: 2300 | S137: 2300 | T137: 24 | U137: 180 | AC137: 4 | AD137: 10 | AE137: 10 | AF137: 4 | AG137: 10 | AH137: 4 | AI137: 10 | AL137: F
A138: 136.132 | B138: Accepted | C138: NA | D138: BESS HoldCo 1 Limited | E138: DBESS-11 | F138: DNO connection | G138: Battery | H138: 2021-04-30 | I138: 2021-05-31 | J138: 30.04.21 - 31.05.21 (1 months) | K138: As per FFR framework agreement | L138: 2300 | M138: 2300 | N138: 24 | O138: 2300 | P138: 2300 | Q138: 24 | R138: 2300 | S138: 2300 | T138: 24 | U138: 47.6 | AC138: 1.6 | AD138: 4 | AE138: 4 | AF138: 1.6 | AG138: 4 | AH138: 1.6 | AI138: 4 | AL138: G
A140: Rejection Codes | B140: Code | D140: Reason
B141: 1 | C141: Beneficial | E141: 1.1 | F141: Req. satisifed by more beneficial bids
E142: 1.2 | F142: No outstanding req.
E143: 1.3 | F143: Desired procurement volume already met
E144: 1.4 | F144: Formed part of AON. Not collectively beneficial
B145: 2 | C145: Price not beneificial across tendered period
B146: 3 | C146: Does not meet tender prerequisites
B147: 4 | C147: Multiple tenders received for the same unit
B148: 5 | C148: Beyond desired procument volume
